{"text_format":"1","workbook":"xlsx","n_sheets":5,"sheets":["Disclaimer","Trade","Orders","Positions","NetPositions"],"not_rendered":{"charts":0,"images":0,"macros":1,"external_links":1,"defined_names":2,"comments":0,"pivot_tables":0},"unopened":[],"bounds":{"document_bytes":16777216,"sheet_cells":100000,"rows_first":2000,"rows_last":500,"rows_between":2000,"halvings":0,"cell_chars":16384,"cell_head_chars":4096},"cells_cut":0,"cells_raw":0,"read":"whole","date_system":"1900"}

{"sheet":"Disclaimer","index":0,"n_rows":18,"n_cols":2,"rows_kept":18,"cut":false,"hidden":false,"merged":[[1,1,15,3],[17,1,24,3]]}
[]
[null,"Copyright © 2019 Saxo Bank A/S\n\nLicensed under the Apache License, Version 2.0 (the \"License\");\nYou may not use this file except in compliance with the License.\nYou may obtain a copy of the License at\n\nhttp://www.apache.org/licenses/LICENSE-2.0\n\nUnless required by applicable law or agreed to in writing, software\ndistributed under the License is distributed on an \"AS IS\" BASIS,\nWITHOUT WARRANTIES OR CONDITIONS OF ANY KIND, either express or implied.\nSee the License for the specific language governing permissions and limitations under the License."]
[]
[]
[]
[]
[]
[]
[]
[]
[]
[]
[]
[]
[]
[]
[]
[null,"WARNING:\n\nThis tool sends trades AUTOMATICALLY to Saxo's OpenAPI and should only be used for demonstration purposes.\n\nDO NOT USE IN LIVE ENVIRONMENT.\n\n"]

{"sheet":"Trade","index":1,"n_rows":1,"n_cols":1,"rows_kept":1,"cut":false,"hidden":false,"merged":[[0,0,0,2]]}
["OpenAPI Bulk Order Tool"]

{"sheet":"Orders","index":2,"n_rows":1001,"n_cols":14,"rows_kept":1001,"cut":false,"hidden":false,"merged":[[0,0,0,1],[3,11,3,12]]}
["Orders Overview"]
[]
[]
[{"$f":"_xll.OpenAPISubscribe(\"/openapi/port/v1/orders/subscriptions\",\"ClientKey:\"&_xll.OpenAPIGetClientKey(),\"displayandformat\",\"AccountId,AccountKey,OrderId,DisplayAndFormat.Symbol,AssetType,BuySell,Amount,OpenOrderType,Price,Duration.DurationType,Status\")","v":"You are unauthorized."},"AccountKey","OrderId","DisplayAndFormat.Symbol","AssetType","BuySell","Amount","OpenOrderType","Price","Duration.DurationType","Status","Actions",null,"Cancellation Status"]
[null,null,null,null,null,null,null,null,null,null,null,{"$f":"IF(K5=\"Working\",\"Market\",\"\")","v":""},{"$f":"IF(K5=\"Working\",\"Cancel\",\"\")","v":""}]
[null,null,null,null,null,null,null,null,null,null,null,{"$f":"IF(K6=\"Working\",\"Market\",\"\")","v":""},{"$f":"IF(K6=\"Working\",\"Cancel\",\"\")","v":""}]
[null,null,null,null,null,null,null,null,null,null,null,"",""]
[null,null,null,null,null,null,null,null,null,null,null,"",""]
[null,null,null,null,null,null,null,null,null,null,null,"",""]
[null,null,null,null,null,null,null,null,null,null,null,"",""]
[null,null,null,null,null,null,null,null,null,null,null,"",""]
[null,null,null,null,null,null,null,null,null,null,null,"",""]
[null,null,null,null,null,null,null,null,null,null,null,"",""]
[null,null,null,null,null,null,null,null,null,null,null,"",""]
[null,null,null,null,null,null,null,null,null,null,null,"",""]
[null,null,null,null,null,null,null,null,null,null,null,"",""]
[null,null,null,null,null,null,null,null,null,null,null,"",""]
[null,null,null,null,null,null,null,null,null,null,null,"",""]
[null,null,null,null,null,null,null,null,null,null,null,"",""]
[null,null,null,null,null,null,null,null,null,null,null,"",""]
[null,null,null,null,null,null,null,null,null,null,null,"",""]
[null,null,null,null,null,null,null,null,null,null,null,"",""]
[null,null,null,null,null,null,null,null,null,null,null,"",""]
[null,null,null,null,null,null,null,null,null,null,null,"",""]
[null,null,null,null,null,null,null,null,null,null,null,"",""]
[null,null,null,null,null,null,null,null,null,null,null,"",""]
[null,null,null,null,null,null,null,null,null,null,null,"",""]
[null,null,null,null,null,null,null,null,null,null,null,"",""]
[null,null,null,null,null,null,null,null,null,null,null,"",""]
[null,null,null,null,null,null,null,null,null,null,null,"",""]
[null,null,null,null,null,null,null,null,null,null,null,"",""]
[null,null,null,null,null,null,null,null,null,null,null,"",""]
[null,null,null,null,null,null,null,null,null,null,null,"",""]
[null,null,null,null,null,null,null,null,null,null,null,"",""]
[null,null,null,null,null,null,null,null,null,null,null,"",""]
[null,null,null,null,null,null,null,null,null,null,null,"",""]
[null,null,null,null,null,null,null,null,null,null,null,"",""]
[null,null,null,null,null,null,null,null,null,null,null,"",""]
[null,null,null,null,null,null,null,null,null,null,null,"",""]
[null,null,null,null,null,null,null,null,null,null,null,"",""]
[null,null,null,null,null,null,null,null,null,null,null,"",""]
[null,null,null,null,null,null,null,null,null,null,null,"",""]
[null,null,null,null,null,null,null,null,null,null,null,"",""]
[null,null,null,null,null,null,null,null,null,null,null,"",""]
[null,null,null,null,null,null,null,null,null,null,null,"",""]
[null,null,null,null,null,null,null,null,null,null,null,"",""]
[null,null,null,null,null,null,null,null,null,null,null,"",""]
[null,null,null,null,null,null,null,null,null,null,null,"",""]
[null,null,null,null,null,null,null,null,null,null,null,"",""]
[null,null,null,null,null,null,null,null,null,null,null,"",""]
[null,null,null,null,null,null,null,null,null,null,null,"",""]
[null,null,null,null,null,null,null,null,null,null,null,"",""]
[null,null,null,null,null,null,null,null,null,null,null,"",""]
[null,null,null,null,null,null,null,null,null,null,null,"",""]
[null,null,null,null,null,null,null,null,null,null,null,"",""]
[null,null,null,null,null,null,null,null,null,null,null,"",""]
[null,null,null,null,null,null,null,null,null,null,null,"",""]
[null,null,null,null,null,null,null,null,null,null,null,"",""]
[null,null,null,null,null,null,null,null,null,null,null,"",""]
[null,null,null,null,null,null,null,null,null,null,null,"",""]
[null,null,null,null,null,null,null,null,null,null,null,"",""]
[null,null,null,null,null,null,null,null,null,null,null,"",""]
[null,null,null,null,null,null,null,null,null,null,null,"",""]
[null,null,null,null,null,null,null,null,null,null,null,"",""]
[null,null,null,null,null,null,null,null,null,null,null,"",""]
[null,null,null,null,null,null,null,null,null,null,null,"",""]
[null,null,null,null,null,null,null,null,null,null,null,"",""]
[null,null,null,null,null,null,null,null,null,null,null,"",""]
[null,null,null,null,null,null,null,null,null,null,null,"",""]
[null,null,null,null,null,null,null,null,null,null,null,{"$f":"IF(K70=\"Working\",\"Market\",\"\")","v":""},{"$f":"IF(K70=\"Working\",\"Cancel\",\"\")","v":""}]
[null,null,null,null,null,null,null,null,null,null,null,"",""]
[null,null,null,null,null,null,null,null,null,null,null,"",""]
[null,null,null,null,null,null,null,null,null,null,null,"",""]
[null,null,null,null,null,null,null,null,null,null,null,"",""]
[null,null,null,null,null,null,null,null,null,null,null,"",""]
[null,null,null,null,null,null,null,null,null,null,null,"",""]
[null,null,null,null,null,null,null,null,null,null,null,"",""]
[null,null,null,null,null,null,null,null,null,null,null,"",""]
[null,null,null,null,null,null,null,null,null,null,null,"",""]
[null,null,null,null,null,null,null,null,null,null,null,"",""]
[null,null,null,null,null,null,null,null,null,null,null,"",""]
[null,null,null,null,null,null,null,null,null,null,null,"",""]
[null,null,null,null,null,null,null,null,null,null,null,"",""]
[null,null,null,null,null,null,null,null,null,null,null,"",""]
[null,null,null,null,null,null,null,null,null,null,null,"",""]
[null,null,null,null,null,null,null,null,null,null,null,"",""]
[null,null,null,null,null,null,null,null,null,null,null,"",""]
[null,null,null,null,null,null,null,null,null,null,null,"",""]
[null,null,null,null,null,null,null,null,null,null,null,"",""]
[null,null,null,null,null,null,null,null,null,null,null,"",""]
[null,null,null,null,null,null,null,null,null,null,null,"",""]
[null,null,null,null,null,null,null,null,null,null,null,"",""]
[null,null,null,null,null,null,null,null,null,null,null,"",""]
[null,null,null,null,null,null,null,null,null,null,null,"",""]
[null,null,null,null,null,null,null,null,null,null,null,"",""]
[null,null,null,null,null,null,null,null,null,null,null,"",""]
[null,null,null,null,null,null,null,null,null,null,null,"",""]
[null,null,null,null,null,null,null,null,null,null,null,"",""]
[null,null,null,null,null,null,null,null,null,null,null,"",""]
[null,null,null,null,null,null,null,null,null,null,null,"",""]
[null,null,null,null,null,null,null,null,null,null,null,"",""]
[null,null,null,null,null,null,null,null,null,null,null,"",""]
[null,null,null,null,null,null,null,null,null,null,null,"",""]
[null,null,null,null,null,null,null,null,null,null,null,"",""]
[null,null,null,null,null,null,null,null,null,null,null,"",""]
[null,null,null,null,null,null,null,null,null,null,null,"",""]
[null,null,null,null,null,null,null,null,null,null,null,"",""]
[null,null,null,null,null,null,null,null,null,null,null,"",""]
[null,null,null,null,null,null,null,null,null,null,null,"",""]
[null,null,null,null,null,null,null,null,null,null,null,"",""]
[null,null,null,null,null,null,null,null,null,null,null,"",""]
[null,null,null,null,null,null,null,null,null,null,null,"",""]
[null,null,null,null,null,null,null,null,null,null,null,"",""]
[null,null,null,null,null,null,null,null,null,null,null,"",""]
[null,null,null,null,null,null,null,null,null,null,null,"",""]
[null,null,null,null,null,null,null,null,null,null,null,"",""]
[null,null,null,null,null,null,null,null,null,null,null,"",""]
[null,null,null,null,null,null,null,null,null,null,null,"",""]
[null,null,null,null,null,null,null,null,null,null,null,"",""]
[null,null,null,null,null,null,null,null,null,null,null,"",""]
[null,null,null,null,null,null,null,null,null,null,null,"",""]
[null,null,null,null,null,null,null,null,null,null,null,"",""]
[null,null,null,null,null,null,null,null,null,null,null,"",""]
[null,null,null,null,null,null,null,null,null,null,null,"",""]
[null,null,null,null,null,null,null,null,null,null,null,"",""]
[null,null,null,null,null,null,null,null,null,null,null,"",""]
[null,null,null,null,null,null,null,null,null,null,null,"",""]
[null,null,null,null,null,null,null,null,null,null,null,"",""]
[null,null,null,null,null,null,null,null,null,null,null,"",""]
[null,null,null,null,null,null,null,null,null,null,null,"",""]
[null,null,null,null,null,null,null,null,null,null,null,"",""]
[null,null,null,null,null,null,null,null,null,null,null,"",""]
[null,null,null,null,null,null,null,null,null,null,null,"",""]
[null,null,null,null,null,null,null,null,null,null,null,{"$f":"IF(K134=\"Working\",\"Market\",\"\")","v":""},{"$f":"IF(K134=\"Working\",\"Cancel\",\"\")","v":""}]
[null,null,null,null,null,null,null,null,null,null,null,"",""]
[null,null,null,null,null,null,null,null,null,null,null,"",""]
[null,null,null,null,null,null,null,null,null,null,null,"",""]
[null,null,null,null,null,null,null,null,null,null,null,"",""]
[null,null,null,null,null,null,null,null,null,null,null,"",""]
[null,null,null,null,null,null,null,null,null,null,null,"",""]
[null,null,null,null,null,null,null,null,null,null,null,"",""]
[null,null,null,null,null,null,null,null,null,null,null,"",""]
[null,null,null,null,null,null,null,null,null,null,null,"",""]
[null,null,null,null,null,null,null,null,null,null,null,"",""]
[null,null,null,null,null,null,null,null,null,null,null,"",""]
[null,null,null,null,null,null,null,null,null,null,null,"",""]
[null,null,null,null,null,null,null,null,null,null,null,"",""]
[null,null,null,null,null,null,null,null,null,null,null,"",""]
[null,null,null,null,null,null,null,null,null,null,null,"",""]
[null,null,null,null,null,null,null,null,null,null,null,"",""]
[null,null,null,null,null,null,null,null,null,null,null,"",""]
[null,null,null,null,null,null,null,null,null,null,null,"",""]
[null,null,null,null,null,null,null,null,null,null,null,"",""]
[null,null,null,null,null,null,null,null,null,null,null,"",""]
[null,null,null,null,null,null,null,null,null,null,null,"",""]
[null,null,null,null,null,null,null,null,null,null,null,"",""]
[null,null,null,null,null,null,null,null,null,null,null,"",""]
[null,null,null,null,null,null,null,null,null,null,null,"",""]
[null,null,null,null,null,null,null,null,null,null,null,"",""]
[null,null,null,null,null,null,null,null,null,null,null,"",""]
[null,null,null,null,null,null,null,null,null,null,null,"",""]
[null,null,null,null,null,null,null,null,null,null,null,"",""]
[null,null,null,null,null,null,null,null,null,null,null,"",""]
[null,null,null,null,null,null,null,null,null,null,null,"",""]
[null,null,null,null,null,null,null,null,null,null,null,"",""]
[null,null,null,null,null,null,null,null,null,null,null,"",""]
[null,null,null,null,null,null,null,null,null,null,null,"",""]
[null,null,null,null,null,null,null,null,null,null,null,"",""]
[null,null,null,null,null,null,null,null,null,null,null,"",""]
[null,null,null,null,null,null,null,null,null,null,null,"",""]
[null,null,null,null,null,null,null,null,null,null,null,"",""]
[null,null,null,null,null,null,null,null,null,null,null,"",""]
[null,null,null,null,null,null,null,null,null,null,null,"",""]
[null,null,null,null,null,null,null,null,null,null,null,"",""]
[null,null,null,null,null,null,null,null,null,null,null,"",""]
[null,null,null,null,null,null,null,null,null,null,null,"",""]
[null,null,null,null,null,null,null,null,null,null,null,"",""]
[null,null,null,null,null,null,null,null,null,null,null,"",""]
[null,null,null,null,null,null,null,null,null,null,null,"",""]
[null,null,null,null,null,null,null,null,null,null,null,"",""]
[null,null,null,null,null,null,null,null,null,null,null,"",""]
[null,null,null,null,null,null,null,null,null,null,null,"",""]
[null,null,null,null,null,null,null,null,null,null,null,"",""]
[null,null,null,null,null,null,null,null,null,null,null,"",""]
[null,null,null,null,null,null,null,null,null,null,null,"",""]
[null,null,null,null,null,null,null,null,null,null,null,"",""]
[null,null,null,null,null,null,null,null,null,null,null,"",""]
[null,null,null,null,null,null,null,null,null,null,null,"",""]
[null,null,null,null,null,null,null,null,null,null,null,"",""]
[null,null,null,null,null,null,null,null,null,null,null,"",""]
[null,null,null,null,null,null,null,null,null,null,null,"",""]
[null,null,null,null,null,null,null,null,null,null,null,"",""]
[null,null,null,null,null,null,null,null,null,null,null,"",""]
[null,null,null,null,null,null,null,null,null,null,null,"",""]
[null,null,null,null,null,null,null,null,null,null,null,"",""]
[null,null,null,null,null,null,null,null,null,null,null,"",""]
[null,null,null,null,null,null,null,null,null,null,null,"",""]
[null,null,null,null,null,null,null,null,null,null,null,{"$f":"IF(K198=\"Working\",\"Market\",\"\")","v":""},{"$f":"IF(K198=\"Working\",\"Cancel\",\"\")","v":""}]
[null,null,null,null,null,null,null,null,null,null,null,"",""]
[null,null,null,null,null,null,null,null,null,null,null,"",""]
[null,null,null,null,null,null,null,null,null,null,null,"",""]
[null,null,null,null,null,null,null,null,null,null,null,"",""]
[null,null,null,null,null,null,null,null,null,null,null,"",""]
[null,null,null,null,null,null,null,null,null,null,null,"",""]
[null,null,null,null,null,null,null,null,null,null,null,"",""]
[null,null,null,null,null,null,null,null,null,null,null,"",""]
[null,null,null,null,null,null,null,null,null,null,null,"",""]
[null,null,null,null,null,null,null,null,null,null,null,"",""]
[null,null,null,null,null,null,null,null,null,null,null,"",""]
[null,null,null,null,null,null,null,null,null,null,null,"",""]
[null,null,null,null,null,null,null,null,null,null,null,"",""]
[null,null,null,null,null,null,null,null,null,null,null,"",""]
[null,null,null,null,null,null,null,null,null,null,null,"",""]
[null,null,null,null,null,null,null,null,null,null,null,"",""]
[null,null,null,null,null,null,null,null,null,null,null,"",""]
[null,null,null,null,null,null,null,null,null,null,null,"",""]
[null,null,null,null,null,null,null,null,null,null,null,"",""]
[null,null,null,null,null,null,null,null,null,null,null,"",""]
[null,null,null,null,null,null,null,null,null,null,null,"",""]
[null,null,null,null,null,null,null,null,null,null,null,"",""]
[null,null,null,null,null,null,null,null,null,null,null,"",""]
[null,null,null,null,null,null,null,null,null,null,null,"",""]
[null,null,null,null,null,null,null,null,null,null,null,"",""]
[null,null,null,null,null,null,null,null,null,null,null,"",""]
[null,null,null,null,null,null,null,null,null,null,null,"",""]
[null,null,null,null,null,null,null,null,null,null,null,"",""]
[null,null,null,null,null,null,null,null,null,null,null,"",""]
[null,null,null,null,null,null,null,null,null,null,null,"",""]
[null,null,null,null,null,null,null,null,null,null,null,"",""]
[null,null,null,null,null,null,null,null,null,null,null,"",""]
[null,null,null,null,null,null,null,null,null,null,null,"",""]
[null,null,null,null,null,null,null,null,null,null,null,"",""]
[null,null,null,null,null,null,null,null,null,null,null,"",""]
[null,null,null,null,null,null,null,null,null,null,null,"",""]
[null,null,null,null,null,null,null,null,null,null,null,"",""]
[null,null,null,null,null,null,null,null,null,null,null,"",""]
[null,null,null,null,null,null,null,null,null,null,null,"",""]
[null,null,null,null,null,null,null,null,null,null,null,"",""]
[null,null,null,null,null,null,null,null,null,null,null,"",""]
[null,null,null,null,null,null,null,null,null,null,null,"",""]
[null,null,null,null,null,null,null,null,null,null,null,"",""]
[null,null,null,null,null,null,null,null,null,null,null,"",""]
[null,null,null,null,null,null,null,null,null,null,null,"",""]
[null,null,null,null,null,null,null,null,null,null,null,"",""]
[null,null,null,null,null,null,null,null,null,null,null,"",""]
[null,null,null,null,null,null,null,null,null,null,null,"",""]
[null,null,null,null,null,null,null,null,null,null,null,"",""]
[null,null,null,null,null,null,null,null,null,null,null,"",""]
[null,null,null,null,null,null,null,null,null,null,null,"",""]
[null,null,null,null,null,null,null,null,null,null,null,"",""]
[null,null,null,null,null,null,null,null,null,null,null,"",""]
[null,null,null,null,null,null,null,null,null,null,null,"",""]
[null,null,null,null,null,null,null,null,null,null,null,"",""]
[null,null,null,null,null,null,null,null,null,null,null,"",""]
[null,null,null,null,null,null,null,null,null,null,null,"",""]
[null,null,null,null,null,null,null,null,null,null,null,"",""]
[null,null,null,null,null,null,null,null,null,null,null,"",""]
[null,null,null,null,null,null,null,null,null,null,null,"",""]
[null,null,null,null,null,null,null,null,null,null,null,"",""]
[null,null,null,null,null,null,null,null,null,null,null,"",""]
[null,null,null,null,null,null,null,null,null,null,null,"",""]
[null,null,null,null,null,null,null,null,null,null,null,{"$f":"IF(K262=\"Working\",\"Market\",\"\")","v":""},{"$f":"IF(K262=\"Working\",\"Cancel\",\"\")","v":""}]
[null,null,null,null,null,null,null,null,null,null,null,"",""]
[null,null,null,null,null,null,null,null,null,null,null,"",""]
[null,null,null,null,null,null,null,null,null,null,null,"",""]
[null,null,null,null,null,null,null,null,null,null,null,"",""]
[null,null,null,null,null,null,null,null,null,null,null,"",""]
[null,null,null,null,null,null,null,null,null,null,null,"",""]
[null,null,null,null,null,null,null,null,null,null,null,"",""]
[null,null,null,null,null,null,null,null,null,null,null,"",""]
[null,null,null,null,null,null,null,null,null,null,null,"",""]
[null,null,null,null,null,null,null,null,null,null,null,"",""]
[null,null,null,null,null,null,null,null,null,null,null,"",""]
[null,null,null,null,null,null,null,null,null,null,null,"",""]
[null,null,null,null,null,null,null,null,null,null,null,"",""]
[null,null,null,null,null,null,null,null,null,null,null,"",""]
[null,null,null,null,null,null,null,null,null,null,null,"",""]
[null,null,null,null,null,null,null,null,null,null,null,"",""]
[null,null,null,null,null,null,null,null,null,null,null,"",""]
[null,null,null,null,null,null,null,null,null,null,null,"",""]
[null,null,null,null,null,null,null,null,null,null,null,"",""]
[null,null,null,null,null,null,null,null,null,null,null,"",""]
[null,null,null,null,null,null,null,null,null,null,null,"",""]
[null,null,null,null,null,null,null,null,null,null,null,"",""]
[null,null,null,null,null,null,null,null,null,null,null,"",""]
[null,null,null,null,null,null,null,null,null,null,null,"",""]
[null,null,null,null,null,null,null,null,null,null,null,"",""]
[null,null,null,null,null,null,null,null,null,null,null,"",""]
[null,null,null,null,null,null,null,null,null,null,null,"",""]
[null,null,null,null,null,null,null,null,null,null,null,"",""]
[null,null,null,null,null,null,null,null,null,null,null,"",""]
[null,null,null,null,null,null,null,null,null,null,null,"",""]
[null,null,null,null,null,null,null,null,null,null,null,"",""]
[null,null,null,null,null,null,null,null,null,null,null,"",""]
[null,null,null,null,null,null,null,null,null,null,null,"",""]
[null,null,null,null,null,null,null,null,null,null,null,"",""]
[null,null,null,null,null,null,null,null,null,null,null,"",""]
[null,null,null,null,null,null,null,null,null,null,null,"",""]
[null,null,null,null,null,null,null,null,null,null,null,"",""]
[null,null,null,null,null,null,null,null,null,null,null,"",""]
[null,null,null,null,null,null,null,null,null,null,null,"",""]
[null,null,null,null,null,null,null,null,null,null,null,"",""]
[null,null,null,null,null,null,null,null,null,null,null,"",""]
[null,null,null,null,null,null,null,null,null,null,null,"",""]
[null,null,null,null,null,null,null,null,null,null,null,"",""]
[null,null,null,null,null,null,null,null,null,null,null,"",""]
[null,null,null,null,null,null,null,null,null,null,null,"",""]
[null,null,null,null,null,null,null,null,null,null,null,"",""]
[null,null,null,null,null,null,null,null,null,null,null,"",""]
[null,null,null,null,null,null,null,null,null,null,null,"",""]
[null,null,null,null,null,null,null,null,null,null,null,"",""]
[null,null,null,null,null,null,null,null,null,null,null,"",""]
[null,null,null,null,null,null,null,null,null,null,null,"",""]
[null,null,null,null,null,null,null,null,null,null,null,"",""]
[null,null,null,null,null,null,null,null,null,null,null,"",""]
[null,null,null,null,null,null,null,null,null,null,null,"",""]
[null,null,null,null,null,null,null,null,null,null,null,"",""]
[null,null,null,null,null,null,null,null,null,null,null,"",""]
[null,null,null,null,null,null,null,null,null,null,null,"",""]
[null,null,null,null,null,null,null,null,null,null,null,"",""]
[null,null,null,null,null,null,null,null,null,null,null,"",""]
[null,null,null,null,null,null,null,null,null,null,null,"",""]
[null,null,null,null,null,null,null,null,null,null,null,"",""]
[null,null,null,null,null,null,null,null,null,null,null,"",""]
[null,null,null,null,null,null,null,null,null,null,null,"",""]
[null,null,null,null,null,null,null,null,null,null,null,{"$f":"IF(K326=\"Working\",\"Market\",\"\")","v":""},{"$f":"IF(K326=\"Working\",\"Cancel\",\"\")","v":""}]
[null,null,null,null,null,null,null,null,null,null,null,"",""]
[null,null,null,null,null,null,null,null,null,null,null,"",""]
[null,null,null,null,null,null,null,null,null,null,null,"",""]
[null,null,null,null,null,null,null,null,null,null,null,"",""]
[null,null,null,null,null,null,null,null,null,null,null,"",""]
[null,null,null,null,null,null,null,null,null,null,null,"",""]
[null,null,null,null,null,null,null,null,null,null,null,"",""]
[null,null,null,null,null,null,null,null,null,null,null,"",""]
[null,null,null,null,null,null,null,null,null,null,null,"",""]
[null,null,null,null,null,null,null,null,null,null,null,"",""]
[null,null,null,null,null,null,null,null,null,null,null,"",""]
[null,null,null,null,null,null,null,null,null,null,null,"",""]
[null,null,null,null,null,null,null,null,null,null,null,"",""]
[null,null,null,null,null,null,null,null,null,null,null,"",""]
[null,null,null,null,null,null,null,null,null,null,null,"",""]
[null,null,null,null,null,null,null,null,null,null,null,"",""]
[null,null,null,null,null,null,null,null,null,null,null,"",""]
[null,null,null,null,null,null,null,null,null,null,null,"",""]
[null,null,null,null,null,null,null,null,null,null,null,"",""]
[null,null,null,null,null,null,null,null,null,null,null,"",""]
[null,null,null,null,null,null,null,null,null,null,null,"",""]
[null,null,null,null,null,null,null,null,null,null,null,"",""]
[null,null,null,null,null,null,null,null,null,null,null,"",""]
[null,null,null,null,null,null,null,null,null,null,null,"",""]
[null,null,null,null,null,null,null,null,null,null,null,"",""]
[null,null,null,null,null,null,null,null,null,null,null,"",""]
[null,null,null,null,null,null,null,null,null,null,null,"",""]
[null,null,null,null,null,null,null,null,null,null,null,"",""]
[null,null,null,null,null,null,null,null,null,null,null,"",""]
[null,null,null,null,null,null,null,null,null,null,null,"",""]
[null,null,null,null,null,null,null,null,null,null,null,"",""]
[null,null,null,null,null,null,null,null,null,null,null,"",""]
[null,null,null,null,null,null,null,null,null,null,null,"",""]
[null,null,null,null,null,null,null,null,null,null,null,"",""]
[null,null,null,null,null,null,null,null,null,null,null,"",""]
[null,null,null,null,null,null,null,null,null,null,null,"",""]
[null,null,null,null,null,null,null,null,null,null,null,"",""]
[null,null,null,null,null,null,null,null,null,null,null,"",""]
[null,null,null,null,null,null,null,null,null,null,null,"",""]
[null,null,null,null,null,null,null,null,null,null,null,"",""]
[null,null,null,null,null,null,null,null,null,null,null,"",""]
[null,null,null,null,null,null,null,null,null,null,null,"",""]
[null,null,null,null,null,null,null,null,null,null,null,"",""]
[null,null,null,null,null,null,null,null,null,null,null,"",""]
[null,null,null,null,null,null,null,null,null,null,null,"",""]
[null,null,null,null,null,null,null,null,null,null,null,"",""]
[null,null,null,null,null,null,null,null,null,null,null,"",""]
[null,null,null,null,null,null,null,null,null,null,null,"",""]
[null,null,null,null,null,null,null,null,null,null,null,"",""]
[null,null,null,null,null,null,null,null,null,null,null,"",""]
[null,null,null,null,null,null,null,null,null,null,null,"",""]
[null,null,null,null,null,null,null,null,null,null,null,"",""]
[null,null,null,null,null,null,null,null,null,null,null,"",""]
[null,null,null,null,null,null,null,null,null,null,null,"",""]
[null,null,null,null,null,null,null,null,null,null,null,"",""]
[null,null,null,null,null,null,null,null,null,null,null,"",""]
[null,null,null,null,null,null,null,null,null,null,null,"",""]
[null,null,null,null,null,null,null,null,null,null,null,"",""]
[null,null,null,null,null,null,null,null,null,null,null,"",""]
[null,null,null,null,null,null,null,null,null,null,null,"",""]
[null,null,null,null,null,null,null,null,null,null,null,"",""]
[null,null,null,null,null,null,null,null,null,null,null,"",""]
[null,null,null,null,null,null,null,null,null,null,null,"",""]
[null,null,null,null,null,null,null,null,null,null,null,{"$f":"IF(K390=\"Working\",\"Market\",\"\")","v":""},{"$f":"IF(K390=\"Working\",\"Cancel\",\"\")","v":""}]
[null,null,null,null,null,null,null,null,null,null,null,"",""]
[null,null,null,null,null,null,null,null,null,null,null,"",""]
[null,null,null,null,null,null,null,null,null,null,null,"",""]
[null,null,null,null,null,null,null,null,null,null,null,"",""]
[null,null,null,null,null,null,null,null,null,null,null,"",""]
[null,null,null,null,null,null,null,null,null,null,null,"",""]
[null,null,null,null,null,null,null,null,null,null,null,"",""]
[null,null,null,null,null,null,null,null,null,null,null,"",""]
[null,null,null,null,null,null,null,null,null,null,null,"",""]
[null,null,null,null,null,null,null,null,null,null,null,"",""]
[null,null,null,null,null,null,null,null,null,null,null,"",""]
[null,null,null,null,null,null,null,null,null,null,null,"",""]
[null,null,null,null,null,null,null,null,null,null,null,"",""]
[null,null,null,null,null,null,null,null,null,null,null,"",""]
[null,null,null,null,null,null,null,null,null,null,null,"",""]
[null,null,null,null,null,null,null,null,null,null,null,"",""]
[null,null,null,null,null,null,null,null,null,null,null,"",""]
[null,null,null,null,null,null,null,null,null,null,null,"",""]
[null,null,null,null,null,null,null,null,null,null,null,"",""]
[null,null,null,null,null,null,null,null,null,null,null,"",""]
[null,null,null,null,null,null,null,null,null,null,null,"",""]
[null,null,null,null,null,null,null,null,null,null,null,"",""]
[null,null,null,null,null,null,null,null,null,null,null,"",""]
[null,null,null,null,null,null,null,null,null,null,null,"",""]
[null,null,null,null,null,null,null,null,null,null,null,"",""]
[null,null,null,null,null,null,null,null,null,null,null,"",""]
[null,null,null,null,null,null,null,null,null,null,null,"",""]
[null,null,null,null,null,null,null,null,null,null,null,"",""]
[null,null,null,null,null,null,null,null,null,null,null,"",""]
[null,null,null,null,null,null,null,null,null,null,null,"",""]
[null,null,null,null,null,null,null,null,null,null,null,"",""]
[null,null,null,null,null,null,null,null,null,null,null,"",""]
[null,null,null,null,null,null,null,null,null,null,null,"",""]
[null,null,null,null,null,null,null,null,null,null,null,"",""]
[null,null,null,null,null,null,null,null,null,null,null,"",""]
[null,null,null,null,null,null,null,null,null,null,null,"",""]
[null,null,null,null,null,null,null,null,null,null,null,"",""]
[null,null,null,null,null,null,null,null,null,null,null,"",""]
[null,null,null,null,null,null,null,null,null,null,null,"",""]
[null,null,null,null,null,null,null,null,null,null,null,"",""]
[null,null,null,null,null,null,null,null,null,null,null,"",""]
[null,null,null,null,null,null,null,null,null,null,null,"",""]
[null,null,null,null,null,null,null,null,null,null,null,"",""]
[null,null,null,null,null,null,null,null,null,null,null,"",""]
[null,null,null,null,null,null,null,null,null,null,null,"",""]
[null,null,null,null,null,null,null,null,null,null,null,"",""]
[null,null,null,null,null,null,null,null,null,null,null,"",""]
[null,null,null,null,null,null,null,null,null,null,null,"",""]
[null,null,null,null,null,null,null,null,null,null,null,"",""]
[null,null,null,null,null,null,null,null,null,null,null,"",""]
[null,null,null,null,null,null,null,null,null,null,null,"",""]
[null,null,null,null,null,null,null,null,null,null,null,"",""]
[null,null,null,null,null,null,null,null,null,null,null,"",""]
[null,null,null,null,null,null,null,null,null,null,null,"",""]
[null,null,null,null,null,null,null,null,null,null,null,"",""]
[null,null,null,null,null,null,null,null,null,null,null,"",""]
[null,null,null,null,null,null,null,null,null,null,null,"",""]
[null,null,null,null,null,null,null,null,null,null,null,"",""]
[null,null,null,null,null,null,null,null,null,null,null,"",""]
[null,null,null,null,null,null,null,null,null,null,null,"",""]
[null,null,null,null,null,null,null,null,null,null,null,"",""]
[null,null,null,null,null,null,null,null,null,null,null,"",""]
[null,null,null,null,null,null,null,null,null,null,null,"",""]
[null,null,null,null,null,null,null,null,null,null,null,{"$f":"IF(K454=\"Working\",\"Market\",\"\")","v":""},{"$f":"IF(K454=\"Working\",\"Cancel\",\"\")","v":""}]
[null,null,null,null,null,null,null,null,null,null,null,"",""]
[null,null,null,null,null,null,null,null,null,null,null,"",""]
[null,null,null,null,null,null,null,null,null,null,null,"",""]
[null,null,null,null,null,null,null,null,null,null,null,"",""]
[null,null,null,null,null,null,null,null,null,null,null,"",""]
[null,null,null,null,null,null,null,null,null,null,null,"",""]
[null,null,null,null,null,null,null,null,null,null,null,"",""]
[null,null,null,null,null,null,null,null,null,null,null,"",""]
[null,null,null,null,null,null,null,null,null,null,null,"",""]
[null,null,null,null,null,null,null,null,null,null,null,"",""]
[null,null,null,null,null,null,null,null,null,null,null,"",""]
[null,null,null,null,null,null,null,null,null,null,null,"",""]
[null,null,null,null,null,null,null,null,null,null,null,"",""]
[null,null,null,null,null,null,null,null,null,null,null,"",""]
[null,null,null,null,null,null,null,null,null,null,null,"",""]
[null,null,null,null,null,null,null,null,null,null,null,"",""]
[null,null,null,null,null,null,null,null,null,null,null,"",""]
[null,null,null,null,null,null,null,null,null,null,null,"",""]
[null,null,null,null,null,null,null,null,null,null,null,"",""]
[null,null,null,null,null,null,null,null,null,null,null,"",""]
[null,null,null,null,null,null,null,null,null,null,null,"",""]
[null,null,null,null,null,null,null,null,null,null,null,"",""]
[null,null,null,null,null,null,null,null,null,null,null,"",""]
[null,null,null,null,null,null,null,null,null,null,null,"",""]
[null,null,null,null,null,null,null,null,null,null,null,"",""]
[null,null,null,null,null,null,null,null,null,null,null,"",""]
[null,null,null,null,null,null,null,null,null,null,null,"",""]
[null,null,null,null,null,null,null,null,null,null,null,"",""]
[null,null,null,null,null,null,null,null,null,null,null,"",""]
[null,null,null,null,null,null,null,null,null,null,null,"",""]
[null,null,null,null,null,null,null,null,null,null,null,"",""]
[null,null,null,null,null,null,null,null,null,null,null,"",""]
[null,null,null,null,null,null,null,null,null,null,null,"",""]
[null,null,null,null,null,null,null,null,null,null,null,"",""]
[null,null,null,null,null,null,null,null,null,null,null,"",""]
[null,null,null,null,null,null,null,null,null,null,null,"",""]
[null,null,null,null,null,null,null,null,null,null,null,"",""]
[null,null,null,null,null,null,null,null,null,null,null,"",""]
[null,null,null,null,null,null,null,null,null,null,null,"",""]
[null,null,null,null,null,null,null,null,null,null,null,"",""]
[null,null,null,null,null,null,null,null,null,null,null,"",""]
[null,null,null,null,null,null,null,null,null,null,null,"",""]
[null,null,null,null,null,null,null,null,null,null,null,"",""]
[null,null,null,null,null,null,null,null,null,null,null,"",""]
[null,null,null,null,null,null,null,null,null,null,null,"",""]
[null,null,null,null,null,null,null,null,null,null,null,"",""]
[null,null,null,null,null,null,null,null,null,null,null,"",""]
[null,null,null,null,null,null,null,null,null,null,null,"",""]
[null,null,null,null,null,null,null,null,null,null,null,"",""]
[null,null,null,null,null,null,null,null,null,null,null,"",""]
[null,null,null,null,null,null,null,null,null,null,null,"",""]
[null,null,null,null,null,null,null,null,null,null,null,"",""]
[null,null,null,null,null,null,null,null,null,null,null,"",""]
[null,null,null,null,null,null,null,null,null,null,null,"",""]
[null,null,null,null,null,null,null,null,null,null,null,"",""]
[null,null,null,null,null,null,null,null,null,null,null,"",""]
[null,null,null,null,null,null,null,null,null,null,null,"",""]
[null,null,null,null,null,null,null,null,null,null,null,"",""]
[null,null,null,null,null,null,null,null,null,null,null,"",""]
[null,null,null,null,null,null,null,null,null,null,null,"",""]
[null,null,null,null,null,null,null,null,null,null,null,"",""]
[null,null,null,null,null,null,null,null,null,null,null,"",""]
[null,null,null,null,null,null,null,null,null,null,null,"",""]
[null,null,null,null,null,null,null,null,null,null,null,{"$f":"IF(K518=\"Working\",\"Market\",\"\")","v":""},{"$f":"IF(K518=\"Working\",\"Cancel\",\"\")","v":""}]
[null,null,null,null,null,null,null,null,null,null,null,"",""]
[null,null,null,null,null,null,null,null,null,null,null,"",""]
[null,null,null,null,null,null,null,null,null,null,null,"",""]
[null,null,null,null,null,null,null,null,null,null,null,"",""]
[null,null,null,null,null,null,null,null,null,null,null,"",""]
[null,null,null,null,null,null,null,null,null,null,null,"",""]
[null,null,null,null,null,null,null,null,null,null,null,"",""]
[null,null,null,null,null,null,null,null,null,null,null,"",""]
[null,null,null,null,null,null,null,null,null,null,null,"",""]
[null,null,null,null,null,null,null,null,null,null,null,"",""]
[null,null,null,null,null,null,null,null,null,null,null,"",""]
[null,null,null,null,null,null,null,null,null,null,null,"",""]
[null,null,null,null,null,null,null,null,null,null,null,"",""]
[null,null,null,null,null,null,null,null,null,null,null,"",""]
[null,null,null,null,null,null,null,null,null,null,null,"",""]
[null,null,null,null,null,null,null,null,null,null,null,"",""]
[null,null,null,null,null,null,null,null,null,null,null,"",""]
[null,null,null,null,null,null,null,null,null,null,null,"",""]
[null,null,null,null,null,null,null,null,null,null,null,"",""]
[null,null,null,null,null,null,null,null,null,null,null,"",""]
[null,null,null,null,null,null,null,null,null,null,null,"",""]
[null,null,null,null,null,null,null,null,null,null,null,"",""]
[null,null,null,null,null,null,null,null,null,null,null,"",""]
[null,null,null,null,null,null,null,null,null,null,null,"",""]
[null,null,null,null,null,null,null,null,null,null,null,"",""]
[null,null,null,null,null,null,null,null,null,null,null,"",""]
[null,null,null,null,null,null,null,null,null,null,null,"",""]
[null,null,null,null,null,null,null,null,null,null,null,"",""]
[null,null,null,null,null,null,null,null,null,null,null,"",""]
[null,null,null,null,null,null,null,null,null,null,null,"",""]
[null,null,null,null,null,null,null,null,null,null,null,"",""]
[null,null,null,null,null,null,null,null,null,null,null,"",""]
[null,null,null,null,null,null,null,null,null,null,null,"",""]
[null,null,null,null,null,null,null,null,null,null,null,"",""]
[null,null,null,null,null,null,null,null,null,null,null,"",""]
[null,null,null,null,null,null,null,null,null,null,null,"",""]
[null,null,null,null,null,null,null,null,null,null,null,"",""]
[null,null,null,null,null,null,null,null,null,null,null,"",""]
[null,null,null,null,null,null,null,null,null,null,null,"",""]
[null,null,null,null,null,null,null,null,null,null,null,"",""]
[null,null,null,null,null,null,null,null,null,null,null,"",""]
[null,null,null,null,null,null,null,null,null,null,null,"",""]
[null,null,null,null,null,null,null,null,null,null,null,"",""]
[null,null,null,null,null,null,null,null,null,null,null,"",""]
[null,null,null,null,null,null,null,null,null,null,null,"",""]
[null,null,null,null,null,null,null,null,null,null,null,"",""]
[null,null,null,null,null,null,null,null,null,null,null,"",""]
[null,null,null,null,null,null,null,null,null,null,null,"",""]
[null,null,null,null,null,null,null,null,null,null,null,"",""]
[null,null,null,null,null,null,null,null,null,null,null,"",""]
[null,null,null,null,null,null,null,null,null,null,null,"",""]
[null,null,null,null,null,null,null,null,null,null,null,"",""]
[null,null,null,null,null,null,null,null,null,null,null,"",""]
[null,null,null,null,null,null,null,null,null,null,null,"",""]
[null,null,null,null,null,null,null,null,null,null,null,"",""]
[null,null,null,null,null,null,null,null,null,null,null,"",""]
[null,null,null,null,null,null,null,null,null,null,null,"",""]
[null,null,null,null,null,null,null,null,null,null,null,"",""]
[null,null,null,null,null,null,null,null,null,null,null,"",""]
[null,null,null,null,null,null,null,null,null,null,null,"",""]
[null,null,null,null,null,null,null,null,null,null,null,"",""]
[null,null,null,null,null,null,null,null,null,null,null,"",""]
[null,null,null,null,null,null,null,null,null,null,null,"",""]
[null,null,null,null,null,null,null,null,null,null,null,{"$f":"IF(K582=\"Working\",\"Market\",\"\")","v":""},{"$f":"IF(K582=\"Working\",\"Cancel\",\"\")","v":""}]
[null,null,null,null,null,null,null,null,null,null,null,"",""]
[null,null,null,null,null,null,null,null,null,null,null,"",""]
[null,null,null,null,null,null,null,null,null,null,null,"",""]
[null,null,null,null,null,null,null,null,null,null,null,"",""]
[null,null,null,null,null,null,null,null,null,null,null,"",""]
[null,null,null,null,null,null,null,null,null,null,null,"",""]
[null,null,null,null,null,null,null,null,null,null,null,"",""]
[null,null,null,null,null,null,null,null,null,null,null,"",""]
[null,null,null,null,null,null,null,null,null,null,null,"",""]
[null,null,null,null,null,null,null,null,null,null,null,"",""]
[null,null,null,null,null,null,null,null,null,null,null,"",""]
[null,null,null,null,null,null,null,null,null,null,null,"",""]
[null,null,null,null,null,null,null,null,null,null,null,"",""]
[null,null,null,null,null,null,null,null,null,null,null,"",""]
[null,null,null,null,null,null,null,null,null,null,null,"",""]
[null,null,null,null,null,null,null,null,null,null,null,"",""]
[null,null,null,null,null,null,null,null,null,null,null,"",""]
[null,null,null,null,null,null,null,null,null,null,null,"",""]
[null,null,null,null,null,null,null,null,null,null,null,"",""]
[null,null,null,null,null,null,null,null,null,null,null,"",""]
[null,null,null,null,null,null,null,null,null,null,null,"",""]
[null,null,null,null,null,null,null,null,null,null,null,"",""]
[null,null,null,null,null,null,null,null,null,null,null,"",""]
[null,null,null,null,null,null,null,null,null,null,null,"",""]
[null,null,null,null,null,null,null,null,null,null,null,"",""]
[null,null,null,null,null,null,null,null,null,null,null,"",""]
[null,null,null,null,null,null,null,null,null,null,null,"",""]
[null,null,null,null,null,null,null,null,null,null,null,"",""]
[null,null,null,null,null,null,null,null,null,null,null,"",""]
[null,null,null,null,null,null,null,null,null,null,null,"",""]
[null,null,null,null,null,null,null,null,null,null,null,"",""]
[null,null,null,null,null,null,null,null,null,null,null,"",""]
[null,null,null,null,null,null,null,null,null,null,null,"",""]
[null,null,null,null,null,null,null,null,null,null,null,"",""]
[null,null,null,null,null,null,null,null,null,null,null,"",""]
[null,null,null,null,null,null,null,null,null,null,null,"",""]
[null,null,null,null,null,null,null,null,null,null,null,"",""]
[null,null,null,null,null,null,null,null,null,null,null,"",""]
[null,null,null,null,null,null,null,null,null,null,null,"",""]
[null,null,null,null,null,null,null,null,null,null,null,"",""]
[null,null,null,null,null,null,null,null,null,null,null,"",""]
[null,null,null,null,null,null,null,null,null,null,null,"",""]
[null,null,null,null,null,null,null,null,null,null,null,"",""]
[null,null,null,null,null,null,null,null,null,null,null,"",""]
[null,null,null,null,null,null,null,null,null,null,null,"",""]
[null,null,null,null,null,null,null,null,null,null,null,"",""]
[null,null,null,null,null,null,null,null,null,null,null,"",""]
[null,null,null,null,null,null,null,null,null,null,null,"",""]
[null,null,null,null,null,null,null,null,null,null,null,"",""]
[null,null,null,null,null,null,null,null,null,null,null,"",""]
[null,null,null,null,null,null,null,null,null,null,null,"",""]
[null,null,null,null,null,null,null,null,null,null,null,"",""]
[null,null,null,null,null,null,null,null,null,null,null,"",""]
[null,null,null,null,null,null,null,null,null,null,null,"",""]
[null,null,null,null,null,null,null,null,null,null,null,"",""]
[null,null,null,null,null,null,null,null,null,null,null,"",""]
[null,null,null,null,null,null,null,null,null,null,null,"",""]
[null,null,null,null,null,null,null,null,null,null,null,"",""]
[null,null,null,null,null,null,null,null,null,null,null,"",""]
[null,null,null,null,null,null,null,null,null,null,null,"",""]
[null,null,null,null,null,null,null,null,null,null,null,"",""]
[null,null,null,null,null,null,null,null,null,null,null,"",""]
[null,null,null,null,null,null,null,null,null,null,null,"",""]
[null,null,null,null,null,null,null,null,null,null,null,{"$f":"IF(K646=\"Working\",\"Market\",\"\")","v":""},{"$f":"IF(K646=\"Working\",\"Cancel\",\"\")","v":""}]
[null,null,null,null,null,null,null,null,null,null,null,"",""]
[null,null,null,null,null,null,null,null,null,null,null,"",""]
[null,null,null,null,null,null,null,null,null,null,null,"",""]
[null,null,null,null,null,null,null,null,null,null,null,"",""]
[null,null,null,null,null,null,null,null,null,null,null,"",""]
[null,null,null,null,null,null,null,null,null,null,null,"",""]
[null,null,null,null,null,null,null,null,null,null,null,"",""]
[null,null,null,null,null,null,null,null,null,null,null,"",""]
[null,null,null,null,null,null,null,null,null,null,null,"",""]
[null,null,null,null,null,null,null,null,null,null,null,"",""]
[null,null,null,null,null,null,null,null,null,null,null,"",""]
[null,null,null,null,null,null,null,null,null,null,null,"",""]
[null,null,null,null,null,null,null,null,null,null,null,"",""]
[null,null,null,null,null,null,null,null,null,null,null,"",""]
[null,null,null,null,null,null,null,null,null,null,null,"",""]
[null,null,null,null,null,null,null,null,null,null,null,"",""]
[null,null,null,null,null,null,null,null,null,null,null,"",""]
[null,null,null,null,null,null,null,null,null,null,null,"",""]
[null,null,null,null,null,null,null,null,null,null,null,"",""]
[null,null,null,null,null,null,null,null,null,null,null,"",""]
[null,null,null,null,null,null,null,null,null,null,null,"",""]
[null,null,null,null,null,null,null,null,null,null,null,"",""]
[null,null,null,null,null,null,null,null,null,null,null,"",""]
[null,null,null,null,null,null,null,null,null,null,null,"",""]
[null,null,null,null,null,null,null,null,null,null,null,"",""]
[null,null,null,null,null,null,null,null,null,null,null,"",""]
[null,null,null,null,null,null,null,null,null,null,null,"",""]
[null,null,null,null,null,null,null,null,null,null,null,"",""]
[null,null,null,null,null,null,null,null,null,null,null,"",""]
[null,null,null,null,null,null,null,null,null,null,null,"",""]
[null,null,null,null,null,null,null,null,null,null,null,"",""]
[null,null,null,null,null,null,null,null,null,null,null,"",""]
[null,null,null,null,null,null,null,null,null,null,null,"",""]
[null,null,null,null,null,null,null,null,null,null,null,"",""]
[null,null,null,null,null,null,null,null,null,null,null,"",""]
[null,null,null,null,null,null,null,null,null,null,null,"",""]
[null,null,null,null,null,null,null,null,null,null,null,"",""]
[null,null,null,null,null,null,null,null,null,null,null,"",""]
[null,null,null,null,null,null,null,null,null,null,null,"",""]
[null,null,null,null,null,null,null,null,null,null,null,"",""]
[null,null,null,null,null,null,null,null,null,null,null,"",""]
[null,null,null,null,null,null,null,null,null,null,null,"",""]
[null,null,null,null,null,null,null,null,null,null,null,"",""]
[null,null,null,null,null,null,null,null,null,null,null,"",""]
[null,null,null,null,null,null,null,null,null,null,null,"",""]
[null,null,null,null,null,null,null,null,null,null,null,"",""]
[null,null,null,null,null,null,null,null,null,null,null,"",""]
[null,null,null,null,null,null,null,null,null,null,null,"",""]
[null,null,null,null,null,null,null,null,null,null,null,"",""]
[null,null,null,null,null,null,null,null,null,null,null,"",""]
[null,null,null,null,null,null,null,null,null,null,null,"",""]
[null,null,null,null,null,null,null,null,null,null,null,"",""]
[null,null,null,null,null,null,null,null,null,null,null,"",""]
[null,null,null,null,null,null,null,null,null,null,null,"",""]
[null,null,null,null,null,null,null,null,null,null,null,"",""]
[null,null,null,null,null,null,null,null,null,null,null,"",""]
[null,null,null,null,null,null,null,null,null,null,null,"",""]
[null,null,null,null,null,null,null,null,null,null,null,"",""]
[null,null,null,null,null,null,null,null,null,null,null,"",""]
[null,null,null,null,null,null,null,null,null,null,null,"",""]
[null,null,null,null,null,null,null,null,null,null,null,"",""]
[null,null,null,null,null,null,null,null,null,null,null,"",""]
[null,null,null,null,null,null,null,null,null,null,null,"",""]
[null,null,null,null,null,null,null,null,null,null,null,{"$f":"IF(K710=\"Working\",\"Market\",\"\")","v":""},{"$f":"IF(K710=\"Working\",\"Cancel\",\"\")","v":""}]
[null,null,null,null,null,null,null,null,null,null,null,"",""]
[null,null,null,null,null,null,null,null,null,null,null,"",""]
[null,null,null,null,null,null,null,null,null,null,null,"",""]
[null,null,null,null,null,null,null,null,null,null,null,"",""]
[null,null,null,null,null,null,null,null,null,null,null,"",""]
[null,null,null,null,null,null,null,null,null,null,null,"",""]
[null,null,null,null,null,null,null,null,null,null,null,"",""]
[null,null,null,null,null,null,null,null,null,null,null,"",""]
[null,null,null,null,null,null,null,null,null,null,null,"",""]
[null,null,null,null,null,null,null,null,null,null,null,"",""]
[null,null,null,null,null,null,null,null,null,null,null,"",""]
[null,null,null,null,null,null,null,null,null,null,null,"",""]
[null,null,null,null,null,null,null,null,null,null,null,"",""]
[null,null,null,null,null,null,null,null,null,null,null,"",""]
[null,null,null,null,null,null,null,null,null,null,null,"",""]
[null,null,null,null,null,null,null,null,null,null,null,"",""]
[null,null,null,null,null,null,null,null,null,null,null,"",""]
[null,null,null,null,null,null,null,null,null,null,null,"",""]
[null,null,null,null,null,null,null,null,null,null,null,"",""]
[null,null,null,null,null,null,null,null,null,null,null,"",""]
[null,null,null,null,null,null,null,null,null,null,null,"",""]
[null,null,null,null,null,null,null,null,null,null,null,"",""]
[null,null,null,null,null,null,null,null,null,null,null,"",""]
[null,null,null,null,null,null,null,null,null,null,null,"",""]
[null,null,null,null,null,null,null,null,null,null,null,"",""]
[null,null,null,null,null,null,null,null,null,null,null,"",""]
[null,null,null,null,null,null,null,null,null,null,null,"",""]
[null,null,null,null,null,null,null,null,null,null,null,"",""]
[null,null,null,null,null,null,null,null,null,null,null,"",""]
[null,null,null,null,null,null,null,null,null,null,null,"",""]
[null,null,null,null,null,null,null,null,null,null,null,"",""]
[null,null,null,null,null,null,null,null,null,null,null,"",""]
[null,null,null,null,null,null,null,null,null,null,null,"",""]
[null,null,null,null,null,null,null,null,null,null,null,"",""]
[null,null,null,null,null,null,null,null,null,null,null,"",""]
[null,null,null,null,null,null,null,null,null,null,null,"",""]
[null,null,null,null,null,null,null,null,null,null,null,"",""]
[null,null,null,null,null,null,null,null,null,null,null,"",""]
[null,null,null,null,null,null,null,null,null,null,null,"",""]
[null,null,null,null,null,null,null,null,null,null,null,"",""]
[null,null,null,null,null,null,null,null,null,null,null,"",""]
[null,null,null,null,null,null,null,null,null,null,null,"",""]
[null,null,null,null,null,null,null,null,null,null,null,"",""]
[null,null,null,null,null,null,null,null,null,null,null,"",""]
[null,null,null,null,null,null,null,null,null,null,null,"",""]
[null,null,null,null,null,null,null,null,null,null,null,"",""]
[null,null,null,null,null,null,null,null,null,null,null,"",""]
[null,null,null,null,null,null,null,null,null,null,null,"",""]
[null,null,null,null,null,null,null,null,null,null,null,"",""]
[null,null,null,null,null,null,null,null,null,null,null,"",""]
[null,null,null,null,null,null,null,null,null,null,null,"",""]
[null,null,null,null,null,null,null,null,null,null,null,"",""]
[null,null,null,null,null,null,null,null,null,null,null,"",""]
[null,null,null,null,null,null,null,null,null,null,null,"",""]
[null,null,null,null,null,null,null,null,null,null,null,"",""]
[null,null,null,null,null,null,null,null,null,null,null,"",""]
[null,null,null,null,null,null,null,null,null,null,null,"",""]
[null,null,null,null,null,null,null,null,null,null,null,"",""]
[null,null,null,null,null,null,null,null,null,null,null,"",""]
[null,null,null,null,null,null,null,null,null,null,null,"",""]
[null,null,null,null,null,null,null,null,null,null,null,"",""]
[null,null,null,null,null,null,null,null,null,null,null,"",""]
[null,null,null,null,null,null,null,null,null,null,null,"",""]
[null,null,null,null,null,null,null,null,null,null,null,{"$f":"IF(K774=\"Working\",\"Market\",\"\")","v":""},{"$f":"IF(K774=\"Working\",\"Cancel\",\"\")","v":""}]
[null,null,null,null,null,null,null,null,null,null,null,"",""]
[null,null,null,null,null,null,null,null,null,null,null,"",""]
[null,null,null,null,null,null,null,null,null,null,null,"",""]
[null,null,null,null,null,null,null,null,null,null,null,"",""]
[null,null,null,null,null,null,null,null,null,null,null,"",""]
[null,null,null,null,null,null,null,null,null,null,null,"",""]
[null,null,null,null,null,null,null,null,null,null,null,"",""]
[null,null,null,null,null,null,null,null,null,null,null,"",""]
[null,null,null,null,null,null,null,null,null,null,null,"",""]
[null,null,null,null,null,null,null,null,null,null,null,"",""]
[null,null,null,null,null,null,null,null,null,null,null,"",""]
[null,null,null,null,null,null,null,null,null,null,null,"",""]
[null,null,null,null,null,null,null,null,null,null,null,"",""]
[null,null,null,null,null,null,null,null,null,null,null,"",""]
[null,null,null,null,null,null,null,null,null,null,null,"",""]
[null,null,null,null,null,null,null,null,null,null,null,"",""]
[null,null,null,null,null,null,null,null,null,null,null,"",""]
[null,null,null,null,null,null,null,null,null,null,null,"",""]
[null,null,null,null,null,null,null,null,null,null,null,"",""]
[null,null,null,null,null,null,null,null,null,null,null,"",""]
[null,null,null,null,null,null,null,null,null,null,null,"",""]
[null,null,null,null,null,null,null,null,null,null,null,"",""]
[null,null,null,null,null,null,null,null,null,null,null,"",""]
[null,null,null,null,null,null,null,null,null,null,null,"",""]
[null,null,null,null,null,null,null,null,null,null,null,"",""]
[null,null,null,null,null,null,null,null,null,null,null,"",""]
[null,null,null,null,null,null,null,null,null,null,null,"",""]
[null,null,null,null,null,null,null,null,null,null,null,"",""]
[null,null,null,null,null,null,null,null,null,null,null,"",""]
[null,null,null,null,null,null,null,null,null,null,null,"",""]
[null,null,null,null,null,null,null,null,null,null,null,"",""]
[null,null,null,null,null,null,null,null,null,null,null,"",""]
[null,null,null,null,null,null,null,null,null,null,null,"",""]
[null,null,null,null,null,null,null,null,null,null,null,"",""]
[null,null,null,null,null,null,null,null,null,null,null,"",""]
[null,null,null,null,null,null,null,null,null,null,null,"",""]
[null,null,null,null,null,null,null,null,null,null,null,"",""]
[null,null,null,null,null,null,null,null,null,null,null,"",""]
[null,null,null,null,null,null,null,null,null,null,null,"",""]
[null,null,null,null,null,null,null,null,null,null,null,"",""]
[null,null,null,null,null,null,null,null,null,null,null,"",""]
[null,null,null,null,null,null,null,null,null,null,null,"",""]
[null,null,null,null,null,null,null,null,null,null,null,"",""]
[null,null,null,null,null,null,null,null,null,null,null,"",""]
[null,null,null,null,null,null,null,null,null,null,null,"",""]
[null,null,null,null,null,null,null,null,null,null,null,"",""]
[null,null,null,null,null,null,null,null,null,null,null,"",""]
[null,null,null,null,null,null,null,null,null,null,null,"",""]
[null,null,null,null,null,null,null,null,null,null,null,"",""]
[null,null,null,null,null,null,null,null,null,null,null,"",""]
[null,null,null,null,null,null,null,null,null,null,null,"",""]
[null,null,null,null,null,null,null,null,null,null,null,"",""]
[null,null,null,null,null,null,null,null,null,null,null,"",""]
[null,null,null,null,null,null,null,null,null,null,null,"",""]
[null,null,null,null,null,null,null,null,null,null,null,"",""]
[null,null,null,null,null,null,null,null,null,null,null,"",""]
[null,null,null,null,null,null,null,null,null,null,null,"",""]
[null,null,null,null,null,null,null,null,null,null,null,"",""]
[null,null,null,null,null,null,null,null,null,null,null,"",""]
[null,null,null,null,null,null,null,null,null,null,null,"",""]
[null,null,null,null,null,null,null,null,null,null,null,"",""]
[null,null,null,null,null,null,null,null,null,null,null,"",""]
[null,null,null,null,null,null,null,null,null,null,null,"",""]
[null,null,null,null,null,null,null,null,null,null,null,{"$f":"IF(K838=\"Working\",\"Market\",\"\")","v":""},{"$f":"IF(K838=\"Working\",\"Cancel\",\"\")","v":""}]
[null,null,null,null,null,null,null,null,null,null,null,"",""]
[null,null,null,null,null,null,null,null,null,null,null,"",""]
[null,null,null,null,null,null,null,null,null,null,null,"",""]
[null,null,null,null,null,null,null,null,null,null,null,"",""]
[null,null,null,null,null,null,null,null,null,null,null,"",""]
[null,null,null,null,null,null,null,null,null,null,null,"",""]
[null,null,null,null,null,null,null,null,null,null,null,"",""]
[null,null,null,null,null,null,null,null,null,null,null,"",""]
[null,null,null,null,null,null,null,null,null,null,null,"",""]
[null,null,null,null,null,null,null,null,null,null,null,"",""]
[null,null,null,null,null,null,null,null,null,null,null,"",""]
[null,null,null,null,null,null,null,null,null,null,null,"",""]
[null,null,null,null,null,null,null,null,null,null,null,"",""]
[null,null,null,null,null,null,null,null,null,null,null,"",""]
[null,null,null,null,null,null,null,null,null,null,null,"",""]
[null,null,null,null,null,null,null,null,null,null,null,"",""]
[null,null,null,null,null,null,null,null,null,null,null,"",""]
[null,null,null,null,null,null,null,null,null,null,null,"",""]
[null,null,null,null,null,null,null,null,null,null,null,"",""]
[null,null,null,null,null,null,null,null,null,null,null,"",""]
[null,null,null,null,null,null,null,null,null,null,null,"",""]
[null,null,null,null,null,null,null,null,null,null,null,"",""]
[null,null,null,null,null,null,null,null,null,null,null,"",""]
[null,null,null,null,null,null,null,null,null,null,null,"",""]
[null,null,null,null,null,null,null,null,null,null,null,"",""]
[null,null,null,null,null,null,null,null,null,null,null,"",""]
[null,null,null,null,null,null,null,null,null,null,null,"",""]
[null,null,null,null,null,null,null,null,null,null,null,"",""]
[null,null,null,null,null,null,null,null,null,null,null,"",""]
[null,null,null,null,null,null,null,null,null,null,null,"",""]
[null,null,null,null,null,null,null,null,null,null,null,"",""]
[null,null,null,null,null,null,null,null,null,null,null,"",""]
[null,null,null,null,null,null,null,null,null,null,null,"",""]
[null,null,null,null,null,null,null,null,null,null,null,"",""]
[null,null,null,null,null,null,null,null,null,null,null,"",""]
[null,null,null,null,null,null,null,null,null,null,null,"",""]
[null,null,null,null,null,null,null,null,null,null,null,"",""]
[null,null,null,null,null,null,null,null,null,null,null,"",""]
[null,null,null,null,null,null,null,null,null,null,null,"",""]
[null,null,null,null,null,null,null,null,null,null,null,"",""]
[null,null,null,null,null,null,null,null,null,null,null,"",""]
[null,null,null,null,null,null,null,null,null,null,null,"",""]
[null,null,null,null,null,null,null,null,null,null,null,"",""]
[null,null,null,null,null,null,null,null,null,null,null,"",""]
[null,null,null,null,null,null,null,null,null,null,null,"",""]
[null,null,null,null,null,null,null,null,null,null,null,"",""]
[null,null,null,null,null,null,null,null,null,null,null,"",""]
[null,null,null,null,null,null,null,null,null,null,null,"",""]
[null,null,null,null,null,null,null,null,null,null,null,"",""]
[null,null,null,null,null,null,null,null,null,null,null,"",""]
[null,null,null,null,null,null,null,null,null,null,null,"",""]
[null,null,null,null,null,null,null,null,null,null,null,"",""]
[null,null,null,null,null,null,null,null,null,null,null,"",""]
[null,null,null,null,null,null,null,null,null,null,null,"",""]
[null,null,null,null,null,null,null,null,null,null,null,"",""]
[null,null,null,null,null,null,null,null,null,null,null,"",""]
[null,null,null,null,null,null,null,null,null,null,null,"",""]
[null,null,null,null,null,null,null,null,null,null,null,"",""]
[null,null,null,null,null,null,null,null,null,null,null,"",""]
[null,null,null,null,null,null,null,null,null,null,null,"",""]
[null,null,null,null,null,null,null,null,null,null,null,"",""]
[null,null,null,null,null,null,null,null,null,null,null,"",""]
[null,null,null,null,null,null,null,null,null,null,null,"",""]
[null,null,null,null,null,null,null,null,null,null,null,{"$f":"IF(K902=\"Working\",\"Market\",\"\")","v":""},{"$f":"IF(K902=\"Working\",\"Cancel\",\"\")","v":""}]
[null,null,null,null,null,null,null,null,null,null,null,"",""]
[null,null,null,null,null,null,null,null,null,null,null,"",""]
[null,null,null,null,null,null,null,null,null,null,null,"",""]
[null,null,null,null,null,null,null,null,null,null,null,"",""]
[null,null,null,null,null,null,null,null,null,null,null,"",""]
[null,null,null,null,null,null,null,null,null,null,null,"",""]
[null,null,null,null,null,null,null,null,null,null,null,"",""]
[null,null,null,null,null,null,null,null,null,null,null,"",""]
[null,null,null,null,null,null,null,null,null,null,null,"",""]
[null,null,null,null,null,null,null,null,null,null,null,"",""]
[null,null,null,null,null,null,null,null,null,null,null,"",""]
[null,null,null,null,null,null,null,null,null,null,null,"",""]
[null,null,null,null,null,null,null,null,null,null,null,"",""]
[null,null,null,null,null,null,null,null,null,null,null,"",""]
[null,null,null,null,null,null,null,null,null,null,null,"",""]
[null,null,null,null,null,null,null,null,null,null,null,"",""]
[null,null,null,null,null,null,null,null,null,null,null,"",""]
[null,null,null,null,null,null,null,null,null,null,null,"",""]
[null,null,null,null,null,null,null,null,null,null,null,"",""]
[null,null,null,null,null,null,null,null,null,null,null,"",""]
[null,null,null,null,null,null,null,null,null,null,null,"",""]
[null,null,null,null,null,null,null,null,null,null,null,"",""]
[null,null,null,null,null,null,null,null,null,null,null,"",""]
[null,null,null,null,null,null,null,null,null,null,null,"",""]
[null,null,null,null,null,null,null,null,null,null,null,"",""]
[null,null,null,null,null,null,null,null,null,null,null,"",""]
[null,null,null,null,null,null,null,null,null,null,null,"",""]
[null,null,null,null,null,null,null,null,null,null,null,"",""]
[null,null,null,null,null,null,null,null,null,null,null,"",""]
[null,null,null,null,null,null,null,null,null,null,null,"",""]
[null,null,null,null,null,null,null,null,null,null,null,"",""]
[null,null,null,null,null,null,null,null,null,null,null,"",""]
[null,null,null,null,null,null,null,null,null,null,null,"",""]
[null,null,null,null,null,null,null,null,null,null,null,"",""]
[null,null,null,null,null,null,null,null,null,null,null,"",""]
[null,null,null,null,null,null,null,null,null,null,null,"",""]
[null,null,null,null,null,null,null,null,null,null,null,"",""]
[null,null,null,null,null,null,null,null,null,null,null,"",""]
[null,null,null,null,null,null,null,null,null,null,null,"",""]
[null,null,null,null,null,null,null,null,null,null,null,"",""]
[null,null,null,null,null,null,null,null,null,null,null,"",""]
[null,null,null,null,null,null,null,null,null,null,null,"",""]
[null,null,null,null,null,null,null,null,null,null,null,"",""]
[null,null,null,null,null,null,null,null,null,null,null,"",""]
[null,null,null,null,null,null,null,null,null,null,null,"",""]
[null,null,null,null,null,null,null,null,null,null,null,"",""]
[null,null,null,null,null,null,null,null,null,null,null,"",""]
[null,null,null,null,null,null,null,null,null,null,null,"",""]
[null,null,null,null,null,null,null,null,null,null,null,"",""]
[null,null,null,null,null,null,null,null,null,null,null,"",""]
[null,null,null,null,null,null,null,null,null,null,null,"",""]
[null,null,null,null,null,null,null,null,null,null,null,"",""]
[null,null,null,null,null,null,null,null,null,null,null,"",""]
[null,null,null,null,null,null,null,null,null,null,null,"",""]
[null,null,null,null,null,null,null,null,null,null,null,"",""]
[null,null,null,null,null,null,null,null,null,null,null,"",""]
[null,null,null,null,null,null,null,null,null,null,null,"",""]
[null,null,null,null,null,null,null,null,null,null,null,"",""]
[null,null,null,null,null,null,null,null,null,null,null,"",""]
[null,null,null,null,null,null,null,null,null,null,null,"",""]
[null,null,null,null,null,null,null,null,null,null,null,"",""]
[null,null,null,null,null,null,null,null,null,null,null,"",""]
[null,null,null,null,null,null,null,null,null,null,null,"",""]
[null,null,null,null,null,null,null,null,null,null,null,{"$f":"IF(K966=\"Working\",\"Market\",\"\")","v":""},{"$f":"IF(K966=\"Working\",\"Cancel\",\"\")","v":""}]
[null,null,null,null,null,null,null,null,null,null,null,"",""]
[null,null,null,null,null,null,null,null,null,null,null,"",""]
[null,null,null,null,null,null,null,null,null,null,null,"",""]
[null,null,null,null,null,null,null,null,null,null,null,"",""]
[null,null,null,null,null,null,null,null,null,null,null,"",""]
[null,null,null,null,null,null,null,null,null,null,null,"",""]
[null,null,null,null,null,null,null,null,null,null,null,"",""]
[null,null,null,null,null,null,null,null,null,null,null,"",""]
[null,null,null,null,null,null,null,null,null,null,null,"",""]
[null,null,null,null,null,null,null,null,null,null,null,"",""]
[null,null,null,null,null,null,null,null,null,null,null,"",""]
[null,null,null,null,null,null,null,null,null,null,null,"",""]
[null,null,null,null,null,null,null,null,null,null,null,"",""]
[null,null,null,null,null,null,null,null,null,null,null,"",""]
[null,null,null,null,null,null,null,null,null,null,null,"",""]
[null,null,null,null,null,null,null,null,null,null,null,"",""]
[null,null,null,null,null,null,null,null,null,null,null,"",""]
[null,null,null,null,null,null,null,null,null,null,null,"",""]
[null,null,null,null,null,null,null,null,null,null,null,"",""]
[null,null,null,null,null,null,null,null,null,null,null,"",""]
[null,null,null,null,null,null,null,null,null,null,null,"",""]
[null,null,null,null,null,null,null,null,null,null,null,"",""]
[null,null,null,null,null,null,null,null,null,null,null,"",""]
[null,null,null,null,null,null,null,null,null,null,null,"",""]
[null,null,null,null,null,null,null,null,null,null,null,"",""]
[null,null,null,null,null,null,null,null,null,null,null,"",""]
[null,null,null,null,null,null,null,null,null,null,null,"",""]
[null,null,null,null,null,null,null,null,null,null,null,"",""]
[null,null,null,null,null,null,null,null,null,null,null,"",""]
[null,null,null,null,null,null,null,null,null,null,null,"",""]
[null,null,null,null,null,null,null,null,null,null,null,"",""]
[null,null,null,null,null,null,null,null,null,null,null,"",""]
[null,null,null,null,null,null,null,null,null,null,null,"",""]
[null,null,null,null,null,null,null,null,null,null,null,"",""]
[null,null,null,null,null,null,null,null,null,null,null,"",""]

{"sheet":"Positions","index":3,"n_rows":1001,"n_cols":11,"rows_kept":1001,"cut":false,"hidden":false,"merged":[[0,0,0,3]]}
["Positions Overview"]
[]
[]
[{"$f":"_xll.OpenAPISubscribe(\"/openapi/port/v1/positions/subscriptions/?$top={$top}\",\"ClientKey:\"&_xll.OpenAPIGetClientKey(),\"positionbase,displayandformat,positionview\",\"PositionBase.AccountId,PositionBase.AccountKey,PositionId,DisplayAndFormat.Symbol,PositionBase.AssetType,PositionBase.Uic,PositionBase.Amount,PositionView.ProfitLossOnTrade,PositionBase.Status\")","v":"You are unauthorized."},"PositionBase.AccountKey","PositionId","DisplayAndFormat.Symbol","PositionBase.AssetType","PositionBase.Uic","PositionBase.Amount","PositionView.ProfitLossOnTrade","PositionBase.Status","Action","Close Status"]
[{"$f":"_xll.OPENAPISUBSCRIBERTD(\"ExcelTrader_38f491b4-6b4b-4a61-9294-dfceaaabd23c\",\"PositionId\",\"5022503425\")","v":"You are unauthorized."},"You are unauthorized.","You are unauthorized.","You are unauthorized.","You are unauthorized.","You are unauthorized.","You are unauthorized.","You are unauthorized.","You are unauthorized.",{"$f":"IF(I5=\"Open\",\"Close\",\"\")","v":""}]
[{"$f":"_xll.OPENAPISUBSCRIBERTD(\"ExcelTrader_38f491b4-6b4b-4a61-9294-dfceaaabd23c\",\"PositionId\",\"5022502331\")","v":"You are unauthorized."},"You are unauthorized.","You are unauthorized.","You are unauthorized.","You are unauthorized.","You are unauthorized.","You are unauthorized.","You are unauthorized.","You are unauthorized.",{"$f":"IF(I6=\"Open\",\"Close\",\"\")","v":""}]
[{"$f":"_xll.OPENAPISUBSCRIBERTD(\"ExcelTrader_38f491b4-6b4b-4a61-9294-dfceaaabd23c\",\"PositionId\",\"5022502245\")","v":"You are unauthorized."},"You are unauthorized.","You are unauthorized.","You are unauthorized.","You are unauthorized.","You are unauthorized.","You are unauthorized.","You are unauthorized.","You are unauthorized.",""]
[{"$f":"_xll.OPENAPISUBSCRIBERTD(\"ExcelTrader_38f491b4-6b4b-4a61-9294-dfceaaabd23c\",\"PositionId\",\"5022502111\")","v":"You are unauthorized."},"You are unauthorized.","You are unauthorized.","You are unauthorized.","You are unauthorized.","You are unauthorized.","You are unauthorized.","You are unauthorized.","You are unauthorized.",""]
[{"$f":"_xll.OPENAPISUBSCRIBERTD(\"ExcelTrader_38f491b4-6b4b-4a61-9294-dfceaaabd23c\",\"PositionId\",\"5022502003\")","v":"You are unauthorized."},"You are unauthorized.","You are unauthorized.","You are unauthorized.","You are unauthorized.","You are unauthorized.","You are unauthorized.","You are unauthorized.","You are unauthorized.",""]
[{"$f":"_xll.OPENAPISUBSCRIBERTD(\"ExcelTrader_38f491b4-6b4b-4a61-9294-dfceaaabd23c\",\"PositionId\",\"5022501519\")","v":"You are unauthorized."},"You are unauthorized.","You are unauthorized.","You are unauthorized.","You are unauthorized.","You are unauthorized.","You are unauthorized.","You are unauthorized.","You are unauthorized.",""]
[null,null,null,null,null,null,null,null,null,""]
[null,null,null,null,null,null,null,null,null,""]
[null,null,null,null,null,null,null,null,null,""]
[null,null,null,null,null,null,null,null,null,""]
[null,null,null,null,null,null,null,null,null,""]
[null,null,null,null,null,null,null,null,null,""]
[null,null,null,null,null,null,null,null,null,""]
[null,null,null,null,null,null,null,null,null,""]
[null,null,null,null,null,null,null,null,null,""]
[null,null,null,null,null,null,null,null,null,""]
[null,null,null,null,null,null,null,null,null,""]
[null,null,null,null,null,null,null,null,null,""]
[null,null,null,null,null,null,null,null,null,""]
[null,null,null,null,null,null,null,null,null,""]
[null,null,null,null,null,null,null,null,null,""]
[null,null,null,null,null,null,null,null,null,""]
[null,null,null,null,null,null,null,null,null,""]
[null,null,null,null,null,null,null,null,null,""]
[null,null,null,null,null,null,null,null,null,""]
[null,null,null,null,null,null,null,null,null,""]
[null,null,null,null,null,null,null,null,null,""]
[null,null,null,null,null,null,null,null,null,""]
[null,null,null,null,null,null,null,null,null,""]
[null,null,null,null,null,null,null,null,null,""]
[null,null,null,null,null,null,null,null,null,""]
[null,null,null,null,null,null,null,null,null,""]
[null,null,null,null,null,null,null,null,null,""]
[null,null,null,null,null,null,null,null,null,""]
[null,null,null,null,null,null,null,null,null,""]
[null,null,null,null,null,null,null,null,null,""]
[null,null,null,null,null,null,null,null,null,""]
[null,null,null,null,null,null,null,null,null,""]
[null,null,null,null,null,null,null,null,null,""]
[null,null,null,null,null,null,null,null,null,""]
[null,null,null,null,null,null,null,null,null,""]
[null,null,null,null,null,null,null,null,null,""]
[null,null,null,null,null,null,null,null,null,""]
[null,null,null,null,null,null,null,null,null,""]
[null,null,null,null,null,null,null,null,null,""]
[null,null,null,null,null,null,null,null,null,""]
[null,null,null,null,null,null,null,null,null,""]
[null,null,null,null,null,null,null,null,null,""]
[null,null,null,null,null,null,null,null,null,""]
[null,null,null,null,null,null,null,null,null,""]
[null,null,null,null,null,null,null,{"$f":"IF(G55=\"Open\",\"Close\",\"\")","v":""},null,""]
[null,null,null,null,null,null,null,"",null,""]
[null,null,null,null,null,null,null,"",null,""]
[null,null,null,null,null,null,null,"",null,""]
[null,null,null,null,null,null,null,"",null,""]
[null,null,null,null,null,null,null,"",null,""]
[null,null,null,null,null,null,null,"",null,""]
[null,null,null,null,null,null,null,"",null,""]
[null,null,null,null,null,null,null,"",null,""]
[null,null,null,null,null,null,null,"",null,""]
[null,null,null,null,null,null,null,"",null,""]
[null,null,null,null,null,null,null,"",null,""]
[null,null,null,null,null,null,null,"",null,""]
[null,null,null,null,null,null,null,"",null,""]
[null,null,null,null,null,null,null,"",null,""]
[null,null,null,null,null,null,null,{"$f":"IF(G70=\"Open\",\"Close\",\"\")","v":""},null,{"$f":"IF(I70=\"Open\",\"Close\",\"\")","v":""}]
[null,null,null,null,null,null,null,"",null,""]
[null,null,null,null,null,null,null,"",null,""]
[null,null,null,null,null,null,null,{"$f":"IF(G73=\"Open\",\"Close\",\"\")","v":""},null,{"$f":"IF(I73=\"Open\",\"Close\",\"\")","v":""}]
[null,null,null,null,null,null,null,{"$f":"IF(G74=\"Open\",\"Close\",\"\")","v":""},null,{"$f":"IF(I74=\"Open\",\"Close\",\"\")","v":""}]
[null,null,null,null,null,null,null,"",null,""]
[null,null,null,null,null,null,null,"",null,""]
[null,null,null,null,null,null,null,"",null,""]
[null,null,null,null,null,null,null,"",null,""]
[null,null,null,null,null,null,null,"",null,""]
[null,null,null,null,null,null,null,"",null,""]
[null,null,null,null,null,null,null,"",null,""]
[null,null,null,null,null,null,null,"",null,""]
[null,null,null,null,null,null,null,"",null,""]
[null,null,null,null,null,null,null,"",null,""]
[null,null,null,null,null,null,null,"",null,""]
[null,null,null,null,null,null,null,"",null,""]
[null,null,null,null,null,null,null,"",null,""]
[null,null,null,null,null,null,null,"",null,""]
[null,null,null,null,null,null,null,"",null,""]
[null,null,null,null,null,null,null,"",null,""]
[null,null,null,null,null,null,null,"",null,""]
[null,null,null,null,null,null,null,"",null,""]
[null,null,null,null,null,null,null,"",null,""]
[null,null,null,null,null,null,null,"",null,""]
[null,null,null,null,null,null,null,"",null,""]
[null,null,null,null,null,null,null,"",null,""]
[null,null,null,null,null,null,null,"",null,""]
[null,null,null,null,null,null,null,"",null,""]
[null,null,null,null,null,null,null,"",null,""]
[null,null,null,null,null,null,null,"",null,""]
[null,null,null,null,null,null,null,"",null,""]
[null,null,null,null,null,null,null,"",null,""]
[null,null,null,null,null,null,null,"",null,""]
[null,null,null,null,null,null,null,"",null,""]
[null,null,null,null,null,null,null,"",null,""]
[null,null,null,null,null,null,null,"",null,""]
[null,null,null,null,null,null,null,"",null,""]
[null,null,null,null,null,null,null,"",null,""]
[null,null,null,null,null,null,null,"",null,""]
[null,null,null,null,null,null,null,"",null,""]
[null,null,null,null,null,null,null,"",null,""]
[null,null,null,null,null,null,null,"",null,""]
[null,null,null,null,null,null,null,"",null,""]
[null,null,null,null,null,null,null,"",null,""]
[null,null,null,null,null,null,null,"",null,""]
[null,null,null,null,null,null,null,"",null,""]
[null,null,null,null,null,null,null,"",null,""]
[null,null,null,null,null,null,null,"",null,""]
[null,null,null,null,null,null,null,"",null,""]
[null,null,null,null,null,null,null,"",null,""]
[null,null,null,null,null,null,null,"",null,""]
[null,null,null,null,null,null,null,"",null,""]
[null,null,null,null,null,null,null,"",null,""]
[null,null,null,null,null,null,null,"",null,""]
[null,null,null,null,null,null,null,"",null,""]
[null,null,null,null,null,null,null,"",null,""]
[null,null,null,null,null,null,null,"",null,""]
[null,null,null,null,null,null,null,"",null,""]
[null,null,null,null,null,null,null,"",null,""]
[null,null,null,null,null,null,null,"",null,""]
[null,null,null,null,null,null,null,"",null,""]
[null,null,null,null,null,null,null,"",null,""]
[null,null,null,null,null,null,null,"",null,""]
[null,null,null,null,null,null,null,"",null,""]
[null,null,null,null,null,null,null,"",null,""]
[null,null,null,null,null,null,null,"",null,""]
[null,null,null,null,null,null,null,"",null,""]
[null,null,null,null,null,null,null,{"$f":"IF(G138=\"Open\",\"Close\",\"\")","v":""},null,{"$f":"IF(I138=\"Open\",\"Close\",\"\")","v":""}]
[null,null,null,null,null,null,null,"",null,""]
[null,null,null,null,null,null,null,"",null,""]
[null,null,null,null,null,null,null,"",null,""]
[null,null,null,null,null,null,null,"",null,""]
[null,null,null,null,null,null,null,"",null,""]
[null,null,null,null,null,null,null,"",null,""]
[null,null,null,null,null,null,null,"",null,""]
[null,null,null,null,null,null,null,"",null,""]
[null,null,null,null,null,null,null,"",null,""]
[null,null,null,null,null,null,null,"",null,""]
[null,null,null,null,null,null,null,"",null,""]
[null,null,null,null,null,null,null,"",null,""]
[null,null,null,null,null,null,null,"",null,""]
[null,null,null,null,null,null,null,"",null,""]
[null,null,null,null,null,null,null,"",null,""]
[null,null,null,null,null,null,null,"",null,""]
[null,null,null,null,null,null,null,"",null,""]
[null,null,null,null,null,null,null,"",null,""]
[null,null,null,null,null,null,null,"",null,""]
[null,null,null,null,null,null,null,"",null,""]
[null,null,null,null,null,null,null,"",null,""]
[null,null,null,null,null,null,null,"",null,""]
[null,null,null,null,null,null,null,"",null,""]
[null,null,null,null,null,null,null,"",null,""]
[null,null,null,null,null,null,null,"",null,""]
[null,null,null,null,null,null,null,"",null,""]
[null,null,null,null,null,null,null,"",null,""]
[null,null,null,null,null,null,null,"",null,""]
[null,null,null,null,null,null,null,"",null,""]
[null,null,null,null,null,null,null,"",null,""]
[null,null,null,null,null,null,null,"",null,""]
[null,null,null,null,null,null,null,"",null,""]
[null,null,null,null,null,null,null,"",null,""]
[null,null,null,null,null,null,null,"",null,""]
[null,null,null,null,null,null,null,"",null,""]
[null,null,null,null,null,null,null,"",null,""]
[null,null,null,null,null,null,null,"",null,""]
[null,null,null,null,null,null,null,"",null,""]
[null,null,null,null,null,null,null,"",null,""]
[null,null,null,null,null,null,null,"",null,""]
[null,null,null,null,null,null,null,"",null,""]
[null,null,null,null,null,null,null,"",null,""]
[null,null,null,null,null,null,null,"",null,""]
[null,null,null,null,null,null,null,"",null,""]
[null,null,null,null,null,null,null,"",null,""]
[null,null,null,null,null,null,null,"",null,""]
[null,null,null,null,null,null,null,"",null,""]
[null,null,null,null,null,null,null,"",null,""]
[null,null,null,null,null,null,null,"",null,""]
[null,null,null,null,null,null,null,"",null,""]
[null,null,null,null,null,null,null,"",null,""]
[null,null,null,null,null,null,null,"",null,""]
[null,null,null,null,null,null,null,"",null,""]
[null,null,null,null,null,null,null,"",null,""]
[null,null,null,null,null,null,null,"",null,""]
[null,null,null,null,null,null,null,"",null,""]
[null,null,null,null,null,null,null,"",null,""]
[null,null,null,null,null,null,null,"",null,""]
[null,null,null,null,null,null,null,"",null,""]
[null,null,null,null,null,null,null,"",null,""]
[null,null,null,null,null,null,null,"",null,""]
[null,null,null,null,null,null,null,"",null,""]
[null,null,null,null,null,null,null,"",null,""]
[null,null,null,null,null,null,null,{"$f":"IF(G202=\"Open\",\"Close\",\"\")","v":""},null,{"$f":"IF(I202=\"Open\",\"Close\",\"\")","v":""}]
[null,null,null,null,null,null,null,"",null,""]
[null,null,null,null,null,null,null,"",null,""]
[null,null,null,null,null,null,null,"",null,""]
[null,null,null,null,null,null,null,"",null,""]
[null,null,null,null,null,null,null,"",null,""]
[null,null,null,null,null,null,null,"",null,""]
[null,null,null,null,null,null,null,"",null,""]
[null,null,null,null,null,null,null,"",null,""]
[null,null,null,null,null,null,null,"",null,""]
[null,null,null,null,null,null,null,"",null,""]
[null,null,null,null,null,null,null,"",null,""]
[null,null,null,null,null,null,null,"",null,""]
[null,null,null,null,null,null,null,"",null,""]
[null,null,null,null,null,null,null,"",null,""]
[null,null,null,null,null,null,null,"",null,""]
[null,null,null,null,null,null,null,"",null,""]
[null,null,null,null,null,null,null,"",null,""]
[null,null,null,null,null,null,null,"",null,""]
[null,null,null,null,null,null,null,"",null,""]
[null,null,null,null,null,null,null,"",null,""]
[null,null,null,null,null,null,null,"",null,""]
[null,null,null,null,null,null,null,"",null,""]
[null,null,null,null,null,null,null,"",null,""]
[null,null,null,null,null,null,null,"",null,""]
[null,null,null,null,null,null,null,"",null,""]
[null,null,null,null,null,null,null,"",null,""]
[null,null,null,null,null,null,null,"",null,""]
[null,null,null,null,null,null,null,"",null,""]
[null,null,null,null,null,null,null,"",null,""]
[null,null,null,null,null,null,null,"",null,""]
[null,null,null,null,null,null,null,"",null,""]
[null,null,null,null,null,null,null,"",null,""]
[null,null,null,null,null,null,null,"",null,""]
[null,null,null,null,null,null,null,"",null,""]
[null,null,null,null,null,null,null,"",null,""]
[null,null,null,null,null,null,null,"",null,""]
[null,null,null,null,null,null,null,"",null,""]
[null,null,null,null,null,null,null,"",null,""]
[null,null,null,null,null,null,null,"",null,""]
[null,null,null,null,null,null,null,"",null,""]
[null,null,null,null,null,null,null,"",null,""]
[null,null,null,null,null,null,null,"",null,""]
[null,null,null,null,null,null,null,"",null,""]
[null,null,null,null,null,null,null,"",null,""]
[null,null,null,null,null,null,null,"",null,""]
[null,null,null,null,null,null,null,"",null,""]
[null,null,null,null,null,null,null,"",null,""]
[null,null,null,null,null,null,null,"",null,""]
[null,null,null,null,null,null,null,"",null,""]
[null,null,null,null,null,null,null,"",null,""]
[null,null,null,null,null,null,null,"",null,""]
[null,null,null,null,null,null,null,"",null,""]
[null,null,null,null,null,null,null,"",null,""]
[null,null,null,null,null,null,null,"",null,""]
[null,null,null,null,null,null,null,"",null,""]
[null,null,null,null,null,null,null,"",null,""]
[null,null,null,null,null,null,null,"",null,""]
[null,null,null,null,null,null,null,"",null,""]
[null,null,null,null,null,null,null,"",null,""]
[null,null,null,null,null,null,null,"",null,""]
[null,null,null,null,null,null,null,"",null,""]
[null,null,null,null,null,null,null,"",null,""]
[null,null,null,null,null,null,null,"",null,""]
[null,null,null,null,null,null,null,{"$f":"IF(G266=\"Open\",\"Close\",\"\")","v":""},null,{"$f":"IF(I266=\"Open\",\"Close\",\"\")","v":""}]
[null,null,null,null,null,null,null,"",null,""]
[null,null,null,null,null,null,null,"",null,""]
[null,null,null,null,null,null,null,"",null,""]
[null,null,null,null,null,null,null,"",null,""]
[null,null,null,null,null,null,null,"",null,""]
[null,null,null,null,null,null,null,"",null,""]
[null,null,null,null,null,null,null,"",null,""]
[null,null,null,null,null,null,null,"",null,""]
[null,null,null,null,null,null,null,"",null,""]
[null,null,null,null,null,null,null,"",null,""]
[null,null,null,null,null,null,null,"",null,""]
[null,null,null,null,null,null,null,"",null,""]
[null,null,null,null,null,null,null,"",null,""]
[null,null,null,null,null,null,null,"",null,""]
[null,null,null,null,null,null,null,"",null,""]
[null,null,null,null,null,null,null,"",null,""]
[null,null,null,null,null,null,null,"",null,""]
[null,null,null,null,null,null,null,"",null,""]
[null,null,null,null,null,null,null,"",null,""]
[null,null,null,null,null,null,null,"",null,""]
[null,null,null,null,null,null,null,"",null,""]
[null,null,null,null,null,null,null,"",null,""]
[null,null,null,null,null,null,null,"",null,""]
[null,null,null,null,null,null,null,"",null,""]
[null,null,null,null,null,null,null,"",null,""]
[null,null,null,null,null,null,null,"",null,""]
[null,null,null,null,null,null,null,"",null,""]
[null,null,null,null,null,null,null,"",null,""]
[null,null,null,null,null,null,null,"",null,""]
[null,null,null,null,null,null,null,"",null,""]
[null,null,null,null,null,null,null,"",null,""]
[null,null,null,null,null,null,null,"",null,""]
[null,null,null,null,null,null,null,"",null,""]
[null,null,null,null,null,null,null,"",null,""]
[null,null,null,null,null,null,null,"",null,""]
[null,null,null,null,null,null,null,"",null,""]
[null,null,null,null,null,null,null,"",null,""]
[null,null,null,null,null,null,null,"",null,""]
[null,null,null,null,null,null,null,"",null,""]
[null,null,null,null,null,null,null,"",null,""]
[null,null,null,null,null,null,null,"",null,""]
[null,null,null,null,null,null,null,"",null,""]
[null,null,null,null,null,null,null,"",null,""]
[null,null,null,null,null,null,null,"",null,""]
[null,null,null,null,null,null,null,"",null,""]
[null,null,null,null,null,null,null,"",null,""]
[null,null,null,null,null,null,null,"",null,""]
[null,null,null,null,null,null,null,"",null,""]
[null,null,null,null,null,null,null,"",null,""]
[null,null,null,null,null,null,null,"",null,""]
[null,null,null,null,null,null,null,"",null,""]
[null,null,null,null,null,null,null,"",null,""]
[null,null,null,null,null,null,null,"",null,""]
[null,null,null,null,null,null,null,"",null,""]
[null,null,null,null,null,null,null,"",null,""]
[null,null,null,null,null,null,null,"",null,""]
[null,null,null,null,null,null,null,"",null,""]
[null,null,null,null,null,null,null,"",null,""]
[null,null,null,null,null,null,null,"",null,""]
[null,null,null,null,null,null,null,"",null,""]
[null,null,null,null,null,null,null,"",null,""]
[null,null,null,null,null,null,null,"",null,""]
[null,null,null,null,null,null,null,"",null,""]
[null,null,null,null,null,null,null,{"$f":"IF(G330=\"Open\",\"Close\",\"\")","v":""},null,{"$f":"IF(I330=\"Open\",\"Close\",\"\")","v":""}]
[null,null,null,null,null,null,null,"",null,""]
[null,null,null,null,null,null,null,"",null,""]
[null,null,null,null,null,null,null,"",null,""]
[null,null,null,null,null,null,null,"",null,""]
[null,null,null,null,null,null,null,"",null,""]
[null,null,null,null,null,null,null,"",null,""]
[null,null,null,null,null,null,null,"",null,""]
[null,null,null,null,null,null,null,"",null,""]
[null,null,null,null,null,null,null,"",null,""]
[null,null,null,null,null,null,null,"",null,""]
[null,null,null,null,null,null,null,"",null,""]
[null,null,null,null,null,null,null,"",null,""]
[null,null,null,null,null,null,null,"",null,""]
[null,null,null,null,null,null,null,"",null,""]
[null,null,null,null,null,null,null,"",null,""]
[null,null,null,null,null,null,null,"",null,""]
[null,null,null,null,null,null,null,"",null,""]
[null,null,null,null,null,null,null,"",null,""]
[null,null,null,null,null,null,null,"",null,""]
[null,null,null,null,null,null,null,"",null,""]
[null,null,null,null,null,null,null,"",null,""]
[null,null,null,null,null,null,null,"",null,""]
[null,null,null,null,null,null,null,"",null,""]
[null,null,null,null,null,null,null,"",null,""]
[null,null,null,null,null,null,null,"",null,""]
[null,null,null,null,null,null,null,"",null,""]
[null,null,null,null,null,null,null,"",null,""]
[null,null,null,null,null,null,null,"",null,""]
[null,null,null,null,null,null,null,"",null,""]
[null,null,null,null,null,null,null,"",null,""]
[null,null,null,null,null,null,null,"",null,""]
[null,null,null,null,null,null,null,"",null,""]
[null,null,null,null,null,null,null,"",null,""]
[null,null,null,null,null,null,null,"",null,""]
[null,null,null,null,null,null,null,"",null,""]
[null,null,null,null,null,null,null,"",null,""]
[null,null,null,null,null,null,null,"",null,""]
[null,null,null,null,null,null,null,"",null,""]
[null,null,null,null,null,null,null,"",null,""]
[null,null,null,null,null,null,null,"",null,""]
[null,null,null,null,null,null,null,"",null,""]
[null,null,null,null,null,null,null,"",null,""]
[null,null,null,null,null,null,null,"",null,""]
[null,null,null,null,null,null,null,"",null,""]
[null,null,null,null,null,null,null,"",null,""]
[null,null,null,null,null,null,null,"",null,""]
[null,null,null,null,null,null,null,"",null,""]
[null,null,null,null,null,null,null,"",null,""]
[null,null,null,null,null,null,null,"",null,""]
[null,null,null,null,null,null,null,"",null,""]
[null,null,null,null,null,null,null,"",null,""]
[null,null,null,null,null,null,null,"",null,""]
[null,null,null,null,null,null,null,"",null,""]
[null,null,null,null,null,null,null,"",null,""]
[null,null,null,null,null,null,null,"",null,""]
[null,null,null,null,null,null,null,"",null,""]
[null,null,null,null,null,null,null,"",null,""]
[null,null,null,null,null,null,null,"",null,""]
[null,null,null,null,null,null,null,"",null,""]
[null,null,null,null,null,null,null,"",null,""]
[null,null,null,null,null,null,null,"",null,""]
[null,null,null,null,null,null,null,"",null,""]
[null,null,null,null,null,null,null,"",null,""]
[null,null,null,null,null,null,null,{"$f":"IF(G394=\"Open\",\"Close\",\"\")","v":""},null,{"$f":"IF(I394=\"Open\",\"Close\",\"\")","v":""}]
[null,null,null,null,null,null,null,"",null,""]
[null,null,null,null,null,null,null,"",null,""]
[null,null,null,null,null,null,null,"",null,""]
[null,null,null,null,null,null,null,"",null,""]
[null,null,null,null,null,null,null,"",null,""]
[null,null,null,null,null,null,null,"",null,""]
[null,null,null,null,null,null,null,"",null,""]
[null,null,null,null,null,null,null,"",null,""]
[null,null,null,null,null,null,null,"",null,""]
[null,null,null,null,null,null,null,"",null,""]
[null,null,null,null,null,null,null,"",null,""]
[null,null,null,null,null,null,null,"",null,""]
[null,null,null,null,null,null,null,"",null,""]
[null,null,null,null,null,null,null,"",null,""]
[null,null,null,null,null,null,null,"",null,""]
[null,null,null,null,null,null,null,"",null,""]
[null,null,null,null,null,null,null,"",null,""]
[null,null,null,null,null,null,null,"",null,""]
[null,null,null,null,null,null,null,"",null,""]
[null,null,null,null,null,null,null,"",null,""]
[null,null,null,null,null,null,null,"",null,""]
[null,null,null,null,null,null,null,"",null,""]
[null,null,null,null,null,null,null,"",null,""]
[null,null,null,null,null,null,null,"",null,""]
[null,null,null,null,null,null,null,"",null,""]
[null,null,null,null,null,null,null,"",null,""]
[null,null,null,null,null,null,null,"",null,""]
[null,null,null,null,null,null,null,"",null,""]
[null,null,null,null,null,null,null,"",null,""]
[null,null,null,null,null,null,null,"",null,""]
[null,null,null,null,null,null,null,"",null,""]
[null,null,null,null,null,null,null,"",null,""]
[null,null,null,null,null,null,null,"",null,""]
[null,null,null,null,null,null,null,"",null,""]
[null,null,null,null,null,null,null,"",null,""]
[null,null,null,null,null,null,null,"",null,""]
[null,null,null,null,null,null,null,"",null,""]
[null,null,null,null,null,null,null,"",null,""]
[null,null,null,null,null,null,null,"",null,""]
[null,null,null,null,null,null,null,"",null,""]
[null,null,null,null,null,null,null,"",null,""]
[null,null,null,null,null,null,null,"",null,""]
[null,null,null,null,null,null,null,"",null,""]
[null,null,null,null,null,null,null,"",null,""]
[null,null,null,null,null,null,null,"",null,""]
[null,null,null,null,null,null,null,"",null,""]
[null,null,null,null,null,null,null,"",null,""]
[null,null,null,null,null,null,null,"",null,""]
[null,null,null,null,null,null,null,"",null,""]
[null,null,null,null,null,null,null,"",null,""]
[null,null,null,null,null,null,null,"",null,""]
[null,null,null,null,null,null,null,"",null,""]
[null,null,null,null,null,null,null,"",null,""]
[null,null,null,null,null,null,null,"",null,""]
[null,null,null,null,null,null,null,"",null,""]
[null,null,null,null,null,null,null,"",null,""]
[null,null,null,null,null,null,null,"",null,""]
[null,null,null,null,null,null,null,"",null,""]
[null,null,null,null,null,null,null,"",null,""]
[null,null,null,null,null,null,null,"",null,""]
[null,null,null,null,null,null,null,"",null,""]
[null,null,null,null,null,null,null,"",null,""]
[null,null,null,null,null,null,null,"",null,""]
[null,null,null,null,null,null,null,{"$f":"IF(G458=\"Open\",\"Close\",\"\")","v":""},null,{"$f":"IF(I458=\"Open\",\"Close\",\"\")","v":""}]
[null,null,null,null,null,null,null,"",null,""]
[null,null,null,null,null,null,null,"",null,""]
[null,null,null,null,null,null,null,"",null,""]
[null,null,null,null,null,null,null,"",null,""]
[null,null,null,null,null,null,null,"",null,""]
[null,null,null,null,null,null,null,"",null,""]
[null,null,null,null,null,null,null,"",null,""]
[null,null,null,null,null,null,null,"",null,""]
[null,null,null,null,null,null,null,"",null,""]
[null,null,null,null,null,null,null,"",null,""]
[null,null,null,null,null,null,null,"",null,""]
[null,null,null,null,null,null,null,"",null,""]
[null,null,null,null,null,null,null,"",null,""]
[null,null,null,null,null,null,null,"",null,""]
[null,null,null,null,null,null,null,"",null,""]
[null,null,null,null,null,null,null,"",null,""]
[null,null,null,null,null,null,null,"",null,""]
[null,null,null,null,null,null,null,"",null,""]
[null,null,null,null,null,null,null,"",null,""]
[null,null,null,null,null,null,null,"",null,""]
[null,null,null,null,null,null,null,"",null,""]
[null,null,null,null,null,null,null,"",null,""]
[null,null,null,null,null,null,null,"",null,""]
[null,null,null,null,null,null,null,"",null,""]
[null,null,null,null,null,null,null,"",null,""]
[null,null,null,null,null,null,null,"",null,""]
[null,null,null,null,null,null,null,"",null,""]
[null,null,null,null,null,null,null,"",null,""]
[null,null,null,null,null,null,null,"",null,""]
[null,null,null,null,null,null,null,"",null,""]
[null,null,null,null,null,null,null,"",null,""]
[null,null,null,null,null,null,null,"",null,""]
[null,null,null,null,null,null,null,"",null,""]
[null,null,null,null,null,null,null,"",null,""]
[null,null,null,null,null,null,null,"",null,""]
[null,null,null,null,null,null,null,"",null,""]
[null,null,null,null,null,null,null,"",null,""]
[null,null,null,null,null,null,null,"",null,""]
[null,null,null,null,null,null,null,"",null,""]
[null,null,null,null,null,null,null,"",null,""]
[null,null,null,null,null,null,null,"",null,""]
[null,null,null,null,null,null,null,"",null,""]
[null,null,null,null,null,null,null,"",null,""]
[null,null,null,null,null,null,null,"",null,""]
[null,null,null,null,null,null,null,"",null,""]
[null,null,null,null,null,null,null,"",null,""]
[null,null,null,null,null,null,null,"",null,""]
[null,null,null,null,null,null,null,"",null,""]
[null,null,null,null,null,null,null,"",null,""]
[null,null,null,null,null,null,null,"",null,""]
[null,null,null,null,null,null,null,"",null,""]
[null,null,null,null,null,null,null,"",null,""]
[null,null,null,null,null,null,null,"",null,""]
[null,null,null,null,null,null,null,"",null,""]
[null,null,null,null,null,null,null,"",null,""]
[null,null,null,null,null,null,null,"",null,""]
[null,null,null,null,null,null,null,"",null,""]
[null,null,null,null,null,null,null,"",null,""]
[null,null,null,null,null,null,null,"",null,""]
[null,null,null,null,null,null,null,"",null,""]
[null,null,null,null,null,null,null,"",null,""]
[null,null,null,null,null,null,null,"",null,""]
[null,null,null,null,null,null,null,"",null,""]
[null,null,null,null,null,null,null,{"$f":"IF(G522=\"Open\",\"Close\",\"\")","v":""},null,{"$f":"IF(I522=\"Open\",\"Close\",\"\")","v":""}]
[null,null,null,null,null,null,null,"",null,""]
[null,null,null,null,null,null,null,"",null,""]
[null,null,null,null,null,null,null,"",null,""]
[null,null,null,null,null,null,null,"",null,""]
[null,null,null,null,null,null,null,"",null,""]
[null,null,null,null,null,null,null,"",null,""]
[null,null,null,null,null,null,null,"",null,""]
[null,null,null,null,null,null,null,"",null,""]
[null,null,null,null,null,null,null,"",null,""]
[null,null,null,null,null,null,null,"",null,""]
[null,null,null,null,null,null,null,"",null,""]
[null,null,null,null,null,null,null,"",null,""]
[null,null,null,null,null,null,null,"",null,""]
[null,null,null,null,null,null,null,"",null,""]
[null,null,null,null,null,null,null,"",null,""]
[null,null,null,null,null,null,null,"",null,""]
[null,null,null,null,null,null,null,"",null,""]
[null,null,null,null,null,null,null,"",null,""]
[null,null,null,null,null,null,null,"",null,""]
[null,null,null,null,null,null,null,"",null,""]
[null,null,null,null,null,null,null,"",null,""]
[null,null,null,null,null,null,null,"",null,""]
[null,null,null,null,null,null,null,"",null,""]
[null,null,null,null,null,null,null,"",null,""]
[null,null,null,null,null,null,null,"",null,""]
[null,null,null,null,null,null,null,"",null,""]
[null,null,null,null,null,null,null,"",null,""]
[null,null,null,null,null,null,null,"",null,""]
[null,null,null,null,null,null,null,"",null,""]
[null,null,null,null,null,null,null,"",null,""]
[null,null,null,null,null,null,null,"",null,""]
[null,null,null,null,null,null,null,"",null,""]
[null,null,null,null,null,null,null,"",null,""]
[null,null,null,null,null,null,null,"",null,""]
[null,null,null,null,null,null,null,"",null,""]
[null,null,null,null,null,null,null,"",null,""]
[null,null,null,null,null,null,null,"",null,""]
[null,null,null,null,null,null,null,"",null,""]
[null,null,null,null,null,null,null,"",null,""]
[null,null,null,null,null,null,null,"",null,""]
[null,null,null,null,null,null,null,"",null,""]
[null,null,null,null,null,null,null,"",null,""]
[null,null,null,null,null,null,null,"",null,""]
[null,null,null,null,null,null,null,"",null,""]
[null,null,null,null,null,null,null,"",null,""]
[null,null,null,null,null,null,null,"",null,""]
[null,null,null,null,null,null,null,"",null,""]
[null,null,null,null,null,null,null,"",null,""]
[null,null,null,null,null,null,null,"",null,""]
[null,null,null,null,null,null,null,"",null,""]
[null,null,null,null,null,null,null,"",null,""]
[null,null,null,null,null,null,null,"",null,""]
[null,null,null,null,null,null,null,"",null,""]
[null,null,null,null,null,null,null,"",null,""]
[null,null,null,null,null,null,null,"",null,""]
[null,null,null,null,null,null,null,"",null,""]
[null,null,null,null,null,null,null,"",null,""]
[null,null,null,null,null,null,null,"",null,""]
[null,null,null,null,null,null,null,"",null,""]
[null,null,null,null,null,null,null,"",null,""]
[null,null,null,null,null,null,null,"",null,""]
[null,null,null,null,null,null,null,"",null,""]
[null,null,null,null,null,null,null,"",null,""]
[null,null,null,null,null,null,null,{"$f":"IF(G586=\"Open\",\"Close\",\"\")","v":""},null,{"$f":"IF(I586=\"Open\",\"Close\",\"\")","v":""}]
[null,null,null,null,null,null,null,"",null,""]
[null,null,null,null,null,null,null,"",null,""]
[null,null,null,null,null,null,null,"",null,""]
[null,null,null,null,null,null,null,"",null,""]
[null,null,null,null,null,null,null,"",null,""]
[null,null,null,null,null,null,null,"",null,""]
[null,null,null,null,null,null,null,"",null,""]
[null,null,null,null,null,null,null,"",null,""]
[null,null,null,null,null,null,null,"",null,""]
[null,null,null,null,null,null,null,"",null,""]
[null,null,null,null,null,null,null,"",null,""]
[null,null,null,null,null,null,null,"",null,""]
[null,null,null,null,null,null,null,"",null,""]
[null,null,null,null,null,null,null,"",null,""]
[null,null,null,null,null,null,null,"",null,""]
[null,null,null,null,null,null,null,"",null,""]
[null,null,null,null,null,null,null,"",null,""]
[null,null,null,null,null,null,null,"",null,""]
[null,null,null,null,null,null,null,"",null,""]
[null,null,null,null,null,null,null,"",null,""]
[null,null,null,null,null,null,null,"",null,""]
[null,null,null,null,null,null,null,"",null,""]
[null,null,null,null,null,null,null,"",null,""]
[null,null,null,null,null,null,null,"",null,""]
[null,null,null,null,null,null,null,"",null,""]
[null,null,null,null,null,null,null,"",null,""]
[null,null,null,null,null,null,null,"",null,""]
[null,null,null,null,null,null,null,"",null,""]
[null,null,null,null,null,null,null,"",null,""]
[null,null,null,null,null,null,null,"",null,""]
[null,null,null,null,null,null,null,"",null,""]
[null,null,null,null,null,null,null,"",null,""]
[null,null,null,null,null,null,null,"",null,""]
[null,null,null,null,null,null,null,"",null,""]
[null,null,null,null,null,null,null,"",null,""]
[null,null,null,null,null,null,null,"",null,""]
[null,null,null,null,null,null,null,"",null,""]
[null,null,null,null,null,null,null,"",null,""]
[null,null,null,null,null,null,null,"",null,""]
[null,null,null,null,null,null,null,"",null,""]
[null,null,null,null,null,null,null,"",null,""]
[null,null,null,null,null,null,null,"",null,""]
[null,null,null,null,null,null,null,"",null,""]
[null,null,null,null,null,null,null,"",null,""]
[null,null,null,null,null,null,null,"",null,""]
[null,null,null,null,null,null,null,"",null,""]
[null,null,null,null,null,null,null,"",null,""]
[null,null,null,null,null,null,null,"",null,""]
[null,null,null,null,null,null,null,"",null,""]
[null,null,null,null,null,null,null,"",null,""]
[null,null,null,null,null,null,null,"",null,""]
[null,null,null,null,null,null,null,"",null,""]
[null,null,null,null,null,null,null,"",null,""]
[null,null,null,null,null,null,null,"",null,""]
[null,null,null,null,null,null,null,"",null,""]
[null,null,null,null,null,null,null,"",null,""]
[null,null,null,null,null,null,null,"",null,""]
[null,null,null,null,null,null,null,"",null,""]
[null,null,null,null,null,null,null,"",null,""]
[null,null,null,null,null,null,null,"",null,""]
[null,null,null,null,null,null,null,"",null,""]
[null,null,null,null,null,null,null,"",null,""]
[null,null,null,null,null,null,null,"",null,""]
[null,null,null,null,null,null,null,{"$f":"IF(G650=\"Open\",\"Close\",\"\")","v":""},null,{"$f":"IF(I650=\"Open\",\"Close\",\"\")","v":""}]
[null,null,null,null,null,null,null,"",null,""]
[null,null,null,null,null,null,null,"",null,""]
[null,null,null,null,null,null,null,"",null,""]
[null,null,null,null,null,null,null,"",null,""]
[null,null,null,null,null,null,null,"",null,""]
[null,null,null,null,null,null,null,"",null,""]
[null,null,null,null,null,null,null,"",null,""]
[null,null,null,null,null,null,null,"",null,""]
[null,null,null,null,null,null,null,"",null,""]
[null,null,null,null,null,null,null,"",null,""]
[null,null,null,null,null,null,null,"",null,""]
[null,null,null,null,null,null,null,"",null,""]
[null,null,null,null,null,null,null,"",null,""]
[null,null,null,null,null,null,null,"",null,""]
[null,null,null,null,null,null,null,"",null,""]
[null,null,null,null,null,null,null,"",null,""]
[null,null,null,null,null,null,null,"",null,""]
[null,null,null,null,null,null,null,"",null,""]
[null,null,null,null,null,null,null,"",null,""]
[null,null,null,null,null,null,null,"",null,""]
[null,null,null,null,null,null,null,"",null,""]
[null,null,null,null,null,null,null,"",null,""]
[null,null,null,null,null,null,null,"",null,""]
[null,null,null,null,null,null,null,"",null,""]
[null,null,null,null,null,null,null,"",null,""]
[null,null,null,null,null,null,null,"",null,""]
[null,null,null,null,null,null,null,"",null,""]
[null,null,null,null,null,null,null,"",null,""]
[null,null,null,null,null,null,null,"",null,""]
[null,null,null,null,null,null,null,"",null,""]
[null,null,null,null,null,null,null,"",null,""]
[null,null,null,null,null,null,null,"",null,""]
[null,null,null,null,null,null,null,"",null,""]
[null,null,null,null,null,null,null,"",null,""]
[null,null,null,null,null,null,null,"",null,""]
[null,null,null,null,null,null,null,"",null,""]
[null,null,null,null,null,null,null,"",null,""]
[null,null,null,null,null,null,null,"",null,""]
[null,null,null,null,null,null,null,"",null,""]
[null,null,null,null,null,null,null,"",null,""]
[null,null,null,null,null,null,null,"",null,""]
[null,null,null,null,null,null,null,"",null,""]
[null,null,null,null,null,null,null,"",null,""]
[null,null,null,null,null,null,null,"",null,""]
[null,null,null,null,null,null,null,"",null,""]
[null,null,null,null,null,null,null,"",null,""]
[null,null,null,null,null,null,null,"",null,""]
[null,null,null,null,null,null,null,"",null,""]
[null,null,null,null,null,null,null,"",null,""]
[null,null,null,null,null,null,null,"",null,""]
[null,null,null,null,null,null,null,"",null,""]
[null,null,null,null,null,null,null,"",null,""]
[null,null,null,null,null,null,null,"",null,""]
[null,null,null,null,null,null,null,"",null,""]
[null,null,null,null,null,null,null,"",null,""]
[null,null,null,null,null,null,null,"",null,""]
[null,null,null,null,null,null,null,"",null,""]
[null,null,null,null,null,null,null,"",null,""]
[null,null,null,null,null,null,null,"",null,""]
[null,null,null,null,null,null,null,"",null,""]
[null,null,null,null,null,null,null,"",null,""]
[null,null,null,null,null,null,null,"",null,""]
[null,null,null,null,null,null,null,"",null,""]
[null,null,null,null,null,null,null,{"$f":"IF(G714=\"Open\",\"Close\",\"\")","v":""},null,{"$f":"IF(I714=\"Open\",\"Close\",\"\")","v":""}]
[null,null,null,null,null,null,null,"",null,""]
[null,null,null,null,null,null,null,"",null,""]
[null,null,null,null,null,null,null,"",null,""]
[null,null,null,null,null,null,null,"",null,""]
[null,null,null,null,null,null,null,"",null,""]
[null,null,null,null,null,null,null,"",null,""]
[null,null,null,null,null,null,null,"",null,""]
[null,null,null,null,null,null,null,"",null,""]
[null,null,null,null,null,null,null,"",null,""]
[null,null,null,null,null,null,null,"",null,""]
[null,null,null,null,null,null,null,"",null,""]
[null,null,null,null,null,null,null,"",null,""]
[null,null,null,null,null,null,null,"",null,""]
[null,null,null,null,null,null,null,"",null,""]
[null,null,null,null,null,null,null,"",null,""]
[null,null,null,null,null,null,null,"",null,""]
[null,null,null,null,null,null,null,"",null,""]
[null,null,null,null,null,null,null,"",null,""]
[null,null,null,null,null,null,null,"",null,""]
[null,null,null,null,null,null,null,"",null,""]
[null,null,null,null,null,null,null,"",null,""]
[null,null,null,null,null,null,null,"",null,""]
[null,null,null,null,null,null,null,"",null,""]
[null,null,null,null,null,null,null,"",null,""]
[null,null,null,null,null,null,null,"",null,""]
[null,null,null,null,null,null,null,"",null,""]
[null,null,null,null,null,null,null,"",null,""]
[null,null,null,null,null,null,null,"",null,""]
[null,null,null,null,null,null,null,"",null,""]
[null,null,null,null,null,null,null,"",null,""]
[null,null,null,null,null,null,null,"",null,""]
[null,null,null,null,null,null,null,"",null,""]
[null,null,null,null,null,null,null,"",null,""]
[null,null,null,null,null,null,null,"",null,""]
[null,null,null,null,null,null,null,"",null,""]
[null,null,null,null,null,null,null,"",null,""]
[null,null,null,null,null,null,null,"",null,""]
[null,null,null,null,null,null,null,"",null,""]
[null,null,null,null,null,null,null,"",null,""]
[null,null,null,null,null,null,null,"",null,""]
[null,null,null,null,null,null,null,"",null,""]
[null,null,null,null,null,null,null,"",null,""]
[null,null,null,null,null,null,null,"",null,""]
[null,null,null,null,null,null,null,"",null,""]
[null,null,null,null,null,null,null,"",null,""]
[null,null,null,null,null,null,null,"",null,""]
[null,null,null,null,null,null,null,"",null,""]
[null,null,null,null,null,null,null,"",null,""]
[null,null,null,null,null,null,null,"",null,""]
[null,null,null,null,null,null,null,"",null,""]
[null,null,null,null,null,null,null,"",null,""]
[null,null,null,null,null,null,null,"",null,""]
[null,null,null,null,null,null,null,"",null,""]
[null,null,null,null,null,null,null,"",null,""]
[null,null,null,null,null,null,null,"",null,""]
[null,null,null,null,null,null,null,"",null,""]
[null,null,null,null,null,null,null,"",null,""]
[null,null,null,null,null,null,null,"",null,""]
[null,null,null,null,null,null,null,"",null,""]
[null,null,null,null,null,null,null,"",null,""]
[null,null,null,null,null,null,null,"",null,""]
[null,null,null,null,null,null,null,"",null,""]
[null,null,null,null,null,null,null,"",null,""]
[null,null,null,null,null,null,null,{"$f":"IF(G778=\"Open\",\"Close\",\"\")","v":""},null,{"$f":"IF(I778=\"Open\",\"Close\",\"\")","v":""}]
[null,null,null,null,null,null,null,"",null,""]
[null,null,null,null,null,null,null,"",null,""]
[null,null,null,null,null,null,null,"",null,""]
[null,null,null,null,null,null,null,"",null,""]
[null,null,null,null,null,null,null,"",null,""]
[null,null,null,null,null,null,null,"",null,""]
[null,null,null,null,null,null,null,"",null,""]
[null,null,null,null,null,null,null,"",null,""]
[null,null,null,null,null,null,null,"",null,""]
[null,null,null,null,null,null,null,"",null,""]
[null,null,null,null,null,null,null,"",null,""]
[null,null,null,null,null,null,null,"",null,""]
[null,null,null,null,null,null,null,"",null,""]
[null,null,null,null,null,null,null,"",null,""]
[null,null,null,null,null,null,null,"",null,""]
[null,null,null,null,null,null,null,"",null,""]
[null,null,null,null,null,null,null,"",null,""]
[null,null,null,null,null,null,null,"",null,""]
[null,null,null,null,null,null,null,"",null,""]
[null,null,null,null,null,null,null,"",null,""]
[null,null,null,null,null,null,null,"",null,""]
[null,null,null,null,null,null,null,"",null,""]
[null,null,null,null,null,null,null,"",null,""]
[null,null,null,null,null,null,null,"",null,""]
[null,null,null,null,null,null,null,"",null,""]
[null,null,null,null,null,null,null,"",null,""]
[null,null,null,null,null,null,null,"",null,""]
[null,null,null,null,null,null,null,"",null,""]
[null,null,null,null,null,null,null,"",null,""]
[null,null,null,null,null,null,null,"",null,""]
[null,null,null,null,null,null,null,"",null,""]
[null,null,null,null,null,null,null,"",null,""]
[null,null,null,null,null,null,null,"",null,""]
[null,null,null,null,null,null,null,"",null,""]
[null,null,null,null,null,null,null,"",null,""]
[null,null,null,null,null,null,null,"",null,""]
[null,null,null,null,null,null,null,"",null,""]
[null,null,null,null,null,null,null,"",null,""]
[null,null,null,null,null,null,null,"",null,""]
[null,null,null,null,null,null,null,"",null,""]
[null,null,null,null,null,null,null,"",null,""]
[null,null,null,null,null,null,null,"",null,""]
[null,null,null,null,null,null,null,"",null,""]
[null,null,null,null,null,null,null,"",null,""]
[null,null,null,null,null,null,null,"",null,""]
[null,null,null,null,null,null,null,"",null,""]
[null,null,null,null,null,null,null,"",null,""]
[null,null,null,null,null,null,null,"",null,""]
[null,null,null,null,null,null,null,"",null,""]
[null,null,null,null,null,null,null,"",null,""]
[null,null,null,null,null,null,null,"",null,""]
[null,null,null,null,null,null,null,"",null,""]
[null,null,null,null,null,null,null,"",null,""]
[null,null,null,null,null,null,null,"",null,""]
[null,null,null,null,null,null,null,"",null,""]
[null,null,null,null,null,null,null,"",null,""]
[null,null,null,null,null,null,null,"",null,""]
[null,null,null,null,null,null,null,"",null,""]
[null,null,null,null,null,null,null,"",null,""]
[null,null,null,null,null,null,null,"",null,""]
[null,null,null,null,null,null,null,"",null,""]
[null,null,null,null,null,null,null,"",null,""]
[null,null,null,null,null,null,null,"",null,""]
[null,null,null,null,null,null,null,{"$f":"IF(G842=\"Open\",\"Close\",\"\")","v":""},null,{"$f":"IF(I842=\"Open\",\"Close\",\"\")","v":""}]
[null,null,null,null,null,null,null,"",null,""]
[null,null,null,null,null,null,null,"",null,""]
[null,null,null,null,null,null,null,"",null,""]
[null,null,null,null,null,null,null,"",null,""]
[null,null,null,null,null,null,null,"",null,""]
[null,null,null,null,null,null,null,"",null,""]
[null,null,null,null,null,null,null,"",null,""]
[null,null,null,null,null,null,null,"",null,""]
[null,null,null,null,null,null,null,"",null,""]
[null,null,null,null,null,null,null,"",null,""]
[null,null,null,null,null,null,null,"",null,""]
[null,null,null,null,null,null,null,"",null,""]
[null,null,null,null,null,null,null,"",null,""]
[null,null,null,null,null,null,null,"",null,""]
[null,null,null,null,null,null,null,"",null,""]
[null,null,null,null,null,null,null,"",null,""]
[null,null,null,null,null,null,null,"",null,""]
[null,null,null,null,null,null,null,"",null,""]
[null,null,null,null,null,null,null,"",null,""]
[null,null,null,null,null,null,null,"",null,""]
[null,null,null,null,null,null,null,"",null,""]
[null,null,null,null,null,null,null,"",null,""]
[null,null,null,null,null,null,null,"",null,""]
[null,null,null,null,null,null,null,"",null,""]
[null,null,null,null,null,null,null,"",null,""]
[null,null,null,null,null,null,null,"",null,""]
[null,null,null,null,null,null,null,"",null,""]
[null,null,null,null,null,null,null,"",null,""]
[null,null,null,null,null,null,null,"",null,""]
[null,null,null,null,null,null,null,"",null,""]
[null,null,null,null,null,null,null,"",null,""]
[null,null,null,null,null,null,null,"",null,""]
[null,null,null,null,null,null,null,"",null,""]
[null,null,null,null,null,null,null,"",null,""]
[null,null,null,null,null,null,null,"",null,""]
[null,null,null,null,null,null,null,"",null,""]
[null,null,null,null,null,null,null,"",null,""]
[null,null,null,null,null,null,null,"",null,""]
[null,null,null,null,null,null,null,"",null,""]
[null,null,null,null,null,null,null,"",null,""]
[null,null,null,null,null,null,null,"",null,""]
[null,null,null,null,null,null,null,"",null,""]
[null,null,null,null,null,null,null,"",null,""]
[null,null,null,null,null,null,null,"",null,""]
[null,null,null,null,null,null,null,"",null,""]
[null,null,null,null,null,null,null,"",null,""]
[null,null,null,null,null,null,null,"",null,""]
[null,null,null,null,null,null,null,"",null,""]
[null,null,null,null,null,null,null,"",null,""]
[null,null,null,null,null,null,null,"",null,""]
[null,null,null,null,null,null,null,"",null,""]
[null,null,null,null,null,null,null,"",null,""]
[null,null,null,null,null,null,null,"",null,""]
[null,null,null,null,null,null,null,"",null,""]
[null,null,null,null,null,null,null,"",null,""]
[null,null,null,null,null,null,null,"",null,""]
[null,null,null,null,null,null,null,"",null,""]
[null,null,null,null,null,null,null,"",null,""]
[null,null,null,null,null,null,null,"",null,""]
[null,null,null,null,null,null,null,"",null,""]
[null,null,null,null,null,null,null,"",null,""]
[null,null,null,null,null,null,null,"",null,""]
[null,null,null,null,null,null,null,"",null,""]
[null,null,null,null,null,null,null,{"$f":"IF(G906=\"Open\",\"Close\",\"\")","v":""},null,{"$f":"IF(I906=\"Open\",\"Close\",\"\")","v":""}]
[null,null,null,null,null,null,null,"",null,""]
[null,null,null,null,null,null,null,"",null,""]
[null,null,null,null,null,null,null,"",null,""]
[null,null,null,null,null,null,null,"",null,""]
[null,null,null,null,null,null,null,"",null,""]
[null,null,null,null,null,null,null,"",null,""]
[null,null,null,null,null,null,null,"",null,""]
[null,null,null,null,null,null,null,"",null,""]
[null,null,null,null,null,null,null,"",null,""]
[null,null,null,null,null,null,null,"",null,""]
[null,null,null,null,null,null,null,"",null,""]
[null,null,null,null,null,null,null,"",null,""]
[null,null,null,null,null,null,null,"",null,""]
[null,null,null,null,null,null,null,"",null,""]
[null,null,null,null,null,null,null,"",null,""]
[null,null,null,null,null,null,null,"",null,""]
[null,null,null,null,null,null,null,"",null,""]
[null,null,null,null,null,null,null,"",null,""]
[null,null,null,null,null,null,null,"",null,""]
[null,null,null,null,null,null,null,"",null,""]
[null,null,null,null,null,null,null,"",null,""]
[null,null,null,null,null,null,null,"",null,""]
[null,null,null,null,null,null,null,"",null,""]
[null,null,null,null,null,null,null,"",null,""]
[null,null,null,null,null,null,null,"",null,""]
[null,null,null,null,null,null,null,"",null,""]
[null,null,null,null,null,null,null,"",null,""]
[null,null,null,null,null,null,null,"",null,""]
[null,null,null,null,null,null,null,"",null,""]
[null,null,null,null,null,null,null,"",null,""]
[null,null,null,null,null,null,null,"",null,""]
[null,null,null,null,null,null,null,"",null,""]
[null,null,null,null,null,null,null,"",null,""]
[null,null,null,null,null,null,null,"",null,""]
[null,null,null,null,null,null,null,"",null,""]
[null,null,null,null,null,null,null,"",null,""]
[null,null,null,null,null,null,null,"",null,""]
[null,null,null,null,null,null,null,"",null,""]
[null,null,null,null,null,null,null,"",null,""]
[null,null,null,null,null,null,null,"",null,""]
[null,null,null,null,null,null,null,"",null,""]
[null,null,null,null,null,null,null,"",null,""]
[null,null,null,null,null,null,null,"",null,""]
[null,null,null,null,null,null,null,"",null,""]
[null,null,null,null,null,null,null,"",null,""]
[null,null,null,null,null,null,null,"",null,""]
[null,null,null,null,null,null,null,"",null,""]
[null,null,null,null,null,null,null,"",null,""]
[null,null,null,null,null,null,null,"",null,""]
[null,null,null,null,null,null,null,"",null,""]
[null,null,null,null,null,null,null,"",null,""]
[null,null,null,null,null,null,null,"",null,""]
[null,null,null,null,null,null,null,"",null,""]
[null,null,null,null,null,null,null,"",null,""]
[null,null,null,null,null,null,null,"",null,""]
[null,null,null,null,null,null,null,"",null,""]
[null,null,null,null,null,null,null,"",null,""]
[null,null,null,null,null,null,null,"",null,""]
[null,null,null,null,null,null,null,"",null,""]
[null,null,null,null,null,null,null,"",null,""]
[null,null,null,null,null,null,null,"",null,""]
[null,null,null,null,null,null,null,"",null,""]
[null,null,null,null,null,null,null,"",null,""]
[null,null,null,null,null,null,null,{"$f":"IF(G970=\"Open\",\"Close\",\"\")","v":""},null,{"$f":"IF(I970=\"Open\",\"Close\",\"\")","v":""}]
[null,null,null,null,null,null,null,"",null,""]
[null,null,null,null,null,null,null,"",null,""]
[null,null,null,null,null,null,null,"",null,""]
[null,null,null,null,null,null,null,"",null,""]
[null,null,null,null,null,null,null,"",null,""]
[null,null,null,null,null,null,null,"",null,""]
[null,null,null,null,null,null,null,"",null,""]
[null,null,null,null,null,null,null,"",null,""]
[null,null,null,null,null,null,null,"",null,""]
[null,null,null,null,null,null,null,"",null,""]
[null,null,null,null,null,null,null,"",null,""]
[null,null,null,null,null,null,null,"",null,""]
[null,null,null,null,null,null,null,"",null,""]
[null,null,null,null,null,null,null,"",null,""]
[null,null,null,null,null,null,null,"",null,""]
[null,null,null,null,null,null,null,"",null,""]
[null,null,null,null,null,null,null,"",null,""]
[null,null,null,null,null,null,null,"",null,""]
[null,null,null,null,null,null,null,"",null,""]
[null,null,null,null,null,null,null,"",null,""]
[null,null,null,null,null,null,null,"",null,""]
[null,null,null,null,null,null,null,"",null,""]
[null,null,null,null,null,null,null,"",null,""]
[null,null,null,null,null,null,null,"",null,""]
[null,null,null,null,null,null,null,"",null,""]
[null,null,null,null,null,null,null,"",null,""]
[null,null,null,null,null,null,null,"",null,""]
[null,null,null,null,null,null,null,"",null,""]
[null,null,null,null,null,null,null,"",null,""]
[null,null,null,null,null,null,null,"",null,""]
[null,null,null,null,null,null,null,"",null,""]

{"sheet":"NetPositions","index":4,"n_rows":1,"n_cols":1,"rows_kept":1,"cut":false,"hidden":false,"merged":[[0,0,0,2]]}
["Net Positions Overview"]